{"text_format":"3","workbook":"xlsx","n_sheets":8,"sheets":["汇总表","1号桥工程","2号桥工程","3号桥工程","4号桥工程","5号桥工程","预制场修建和其它费用","机械租赁费"],"not_rendered":{"defined_names":3},"read":"whole","date_system":"1900"}

{"sheet":"汇总表","index":0,"n_rows":11,"n_cols":6,"rows_kept":11,"merged":[[0,0,0,5],[10,0,10,5]]}
["2025年“F”项目桥梁工程报价汇总表"]
["序号","项目名称","含税最高控制价\n（元）","班组所报含税价格\n（元）","适用税率","备注"]
[1,"1号桥工程",{"$f":"'1号桥工程'!G42","v":507841.73},null,{"v":0.03,"d":"3.00%"}]
[2,"2号桥工程",{"$f":"'2号桥工程'!G47","v":1137151.85},null,{"v":0.03,"d":"3.00%"}]
[3,"3号桥工程",{"$f":"'3号桥工程'!G47","v":888445.85},null,{"v":0.03,"d":"3.00%"}]
[4,"4号桥工程",{"$f":"'4号桥工程'!G48","v":804809.55},null,{"v":0.03,"d":"3.00%"}]
[5,"5号桥工程",{"$f":"'5号桥工程'!G51","v":724008.32},null,{"v":0.03,"d":"3.00%"}]
[6,"预制场修建和其它费用",{"$f":"预制场修建和其它费用!G16","v":{"v":345600.288,"d":"345600.29"}},null,{"v":0.03,"d":"3.00%"}]
[8,"机械租赁费",{"$f":"机械租赁费!E11","v":{"v":990000,"d":"990000.00"}},null,{"v":0.09,"d":"9.00%"}]
[null,"含税总价合计：",{"$f":"SUM(C3:C9)","v":{"v":5397857.588,"d":"5397857.59"}}]
["注：\n1、全费用综合单价，包括人工费、材料费（甲供材除外）、机械费、管理费、利润、措施费、大型机械进出场费（除清单单列机械外）、降排水费（除基坑降排水）、规费、销项增值税和附加税、弃土费，满足环保、城管、政策要求所需的施工措施费及赶工等费用；以上工程量均为暂估量，不因结算工程量与合同工程量不一致而调整综合单价。\n2.现场安全环保文明施工管理要求：（1）由公司统一发放印有“兴绿园林”字样和LOGO的安全帽和反光背心，班组按实名制领取，使用完后交回项目部，否则按采购费用扣款，其余参照合同附件中安全环保管理协议执行。（2）现场雾炮机由甲方提供，投标单位需安排人员管理使用，人工费、油费、维修费及管理费用综合考虑到投标报价中，不单独计取。  （3）防尘网由甲方提供，投标单位安排人员进行覆盖、回收、现场转移等，人工费综合考虑到投标报价中，不单独计取。（5）现场机械均实行一机一炮，每台挖掘机械均应配备随机雾炮机，工作时需保持雾炮机正常工作，加水、加油、维护等费用综合考虑在报价中。（6）机械配置需满足进度要求（7）我司不提供水电接驳口及临时冲洗设施，由承包人自行考虑；\n3.承包人应在报价前自行完成现场踏勘，充分掌握现场实际情况\n4、班组应购买雇主责任险，并按照项目经理部安全文明施工要求规范施工；\n5、临水、临电的搭接：发包人不提供用电接驳口，承包人需自备发电机或自行协商接电，发电机购置或租赁、燃油费、电费、水费、接驳费、协调费、维护费、人工费、电费、材料（含支管及三级配电箱）等一切与此相关的费用均已包含在清单“施工用电”“施工用水”中，由承包人自主报价，包干使用，结算时不作调整。\n6、洗车池修建、车辆日常冲洗：项目经理部不修建洗车池，车辆进出场清洗由承包人负责管理；\n7、发包人提供施工临时便道和机械作业平台，施工期间的平台修整由承包人综合考虑并计入投标报价中，不另行计取。\n8、检测项及检测费：承包人需负责施工过程中的自检工作及费用，包括但不限于自检工具、自检记录、自检人工及施工机械的检测和备案（如需要），同时配合发包人和建设方对材料、构件、工序的常规检验试验以及第三方专项检测。\n9、其他要求：T梁、空心板预制场及钢筋制作场地由发包人指定，承包人实施；\n10、承包人需配资料员，完成自己的所涉及资料，配合甲方按照甲方要求完成工程相关资料；\n11、施工大门、围挡、广告布施工和维护由项目经理部负责；预制场地由发包人提供，承包人进场后预制场管理及甲供材料看管费用由承包人自行负责\n12、临时道路修建及维护：承包人自行考虑，入口道路项目经理部负责，统一管理由项目经理部负责；桥梁预制构件/现浇构件制作安装等施工过程中的临边防护、安全防护措施由承包人负责；\n13、甲供材料下车、二次转运及保管：由承包人负责，甲供材料以清单注明为准，未注明的均为乙供；甲供钢材损耗须控制在7%以内，甲供商品砼损耗须控制在4%以内。\n14、民工按要求进行实名制打卡。"]

{"sheet":"1号桥工程","index":1,"n_rows":42,"n_cols":10,"rows_kept":42,"merged":[[0,0,0,9],[1,0,3,0],[1,1,3,1],[1,2,3,2],[1,3,3,3],[1,4,3,4],[1,5,1,6],[1,7,1,8],[1,9,3,9],[2,5,3,5],[2,6,3,6],[2,7,3,7],[2,8,3,8],[4,1,4,2],[7,1,7,2],[16,1,16,2],[34,1,34,2],[41,1,41,5]]}
["1号桥梁工程劳务施工清单与报价表"]
["序号","项目名称","项目特征描述","单位","工程量","采购最高限价（含税）",null,"投标报价",null,"备注"]
[{"$nulls":5},"全费用综合单价（元）","合价（元）","含税全费用单价（元）","含税合价（元）"]
[]
["一","土石方工程"]
[1,"场内土石方挖运填","1.完成项目范围内桥梁工程土石方开挖、转运、回填工程，工作内容包括但不限于以下工程内容：（1）土石方开挖、石方破碎大改小、土石方转运（含红线范围内取土回填转运，运距综合考虑）、回填等；开挖的各类土、石综合（详见地勘），现场建(废)渣等综合考虑；施工区域换填、回填桥梁作业区域土石方。\n2.填方来源：来源为现场红线内原有土石方，场内综合运距1-2km。\n3.开挖、回填标高：挖填标高均应满足设计要求，误差控制在设计标高±5cm内。\n4.开挖方式、场内运输方式：承包人自行确定。\n5.开挖方案和边坡施工防护及对管线、构筑物、建筑物等采取的保护措施须经业主批准，满足安全、文明施工相关规范及规定，包含在投标报价中。\n6.其他：临边及孔洞的防护、进出车辆冲洗管理、场内外路面清洗管理、投标单位自己操作人员的劳保防护用品、临时用水用电（含水电费用）、必要安全措施等由投标单位承担；现场出现超挖和欠挖现象，造成的损失由投标单位承担；施工内容涉及的检测（复检）费用和送样检测等费用由投标单位承担；机械进、出场费用（含多次进出场）由投标单位综合考虑，包含在投标报价中。                                                    \n7.其余要求：施工过程中应满足城管和环保要求。为保证施工工期并达到环保要求，夜间施工产生的措施费及赶工费等费用包含在综合单价中。\n8.锥坡填筑前应对其地基按相应路基高度地基要求进行处理,锥坡填土分层厚度不得大于30cm,压实度要求不小于95%。\n8.工程量以现场收方为准。","m3",202.2,18,{"$f":"E6*F6","v":3639.6}]
[2,"土石方开挖、外弃","1.完成项目范围内桥梁工程土石方开挖外弃工程，工作内容包括但不限于以下工程内容：（1）土石方开挖、石方破碎大改小、土石方转运外弃；（2）土石围堰开挖外弃；（3）桥梁基础开挖外弃；开挖的各类土、石综合（详见地勘），现场建(废)渣等综合考虑；\n2.外弃内容：开挖的各类土、石(含淤泥)综合，现场建(废)渣等综合考虑 \n3.弃土外运权责：发包人不指定弃土场，由承包人自行踏勘现场、选定合规弃土场、确定运输路线与运距；弃土外运涉及的运输、装卸、弃土场租赁 / 征用、合规手续办理、环保水保、防护等全部费用，均包含在综合单价内，发包人不另行支付。承包人承担弃土全流程合规责任，因违规产生的行政处罚、第三方索赔及全部风险损失，均由承包人全额承担，合同价款不作调整。\n4.开挖深度：开挖标高应满足设计要求，误差控制在设计标高±5cm内。\n5.开挖方式、场内运输方式：承包人自行确定。\n6.开挖方案和边坡施工防护及对管线、构筑物、建筑物等采取的保护措施须经业主批准，满足安全、文明施工相关规范及规定，包含在投标报价中。\n10.其他：临边及孔洞的防护、进出车辆冲洗管理、场内外路面清洗管理、投标单位自己操作人员的劳保防护用品、临时用水用电（含水电费用）、必要安全措施等由投标单位承担；现场出现超挖和欠挖现象，造成的损失由投标单位承担；施工内容的检测（复检）费用和送样检测等费用由投标单位承担；机械进、出场费用（含多次进出场）由投标单位综合考虑，包含在投标报价中。                                                    \n11.其余要求：施工过程中应满足城管和环保要求。为保证施工工期并达到环保要求，夜间施工产生的措施费及赶工费等费用包含在综合单价中。\n12.工程量以现场收方为准","m3",{"$f":"507.2-202.2+3000","v":3305},25,82625]
["二","下部结构 "]
[3,"承台垫层、桥头搭板垫层、桥头搭板混凝土浇筑（混凝土甲供）","1.混凝土强度等级：混凝土强度等级：采用商品混凝土，混凝土由发包人供应。\n2.混凝土浇筑机械及方式：浇筑机械、施工方案由承包人自行确定；泵车、天泵费用由发包人承担；发包人负责提供临时便道及作业平台，承包人负责施工期间场内运输道路、浇筑作业场地修整，相关费用综合考虑在报价中。\n3.垫层厚度：综合考虑；\n4.模板工程：模板费用单独列项计价。\n5.搭板与桥台处用沥青玛蹄脂填料填充，搭板与牛腿交接处设置1cm垫油毛毡，费用由承包人综合考虑在投标报价中\n6.施工质量要求：施工工艺、质量标准均满足设计图纸及现行施工技术规范、质量验收标准。","m3",{"$f":"30.8+17.9+31.3","v":80},80,6400,null,null,"损耗4%"]
[4,"承台混凝土浇筑 （混凝土甲供）","1.混凝土强度等级：混凝土强度等级：采用商品混凝土，混凝土由发包人供应。\n2.混凝土浇筑机械及方式：浇筑机械、施工方案由承包人自行确定；泵车、天泵费用由发包人承担；发包人负责提供临时便道及作业平台，承包人负责施工期间场内运输道路、浇筑作业场地修整，相关费用综合考虑在报价中。\n3.养护及温控措施：混凝土浇筑完成后及时覆盖保湿养护，养护时间满足现行规范要求；大体积混凝土需采取测温、保温、降温等防裂措施，相关费用由承包人综合考虑在报价中。\n4.模板工程：模板费用单独列项计价。\n5.施工质量要求：施工工艺、质量标准均满足设计图纸及现行施工技术规范、质量验收标准。","m3",308,65,20020,null,null,"损耗4%"]
[5,"台身及侧墙片石混凝土浇筑（混凝土甲供、片石乙供）","1.混凝土强度等级：片石商品砼（混凝土甲供、片石乙供）\n2.混凝土浇筑机械及方式：浇筑机械、施工方案由承包人自行确定；泵车、天泵费用由发包人承担；发包人负责提供临时便道及作业平台，承包人负责施工期间场内运输道路、浇筑作业场地修整，相关费用综合考虑在报价中。\n3.片石由承包人提供，片石量不大于结构体积的 20%，厚度150～300mm，净距 ≥150mm，不得接触钢筋与预埋件，抗压强度≥30MPa，且不低于混凝土强度等级。\n4.养护及温控措施：混凝土浇筑完成后及时覆盖保湿养护，养护时间满足现行规范要求；大体积混凝土需采取测温、保温、降温等防裂措施，相关费用由承包人综合考虑在报价中。\n5.模板工程：模板费用单独列项计价。\n6.施工质量要求：施工工艺、质量标准均满足设计图纸及现行施工技术规范、质量验收标准。","m3",328.3,115,37754.5,null,null,"损耗4%"]
[6,"台帽混凝土浇筑（混凝土甲供）","1.混凝土强度等级：混凝土强度等级：采用商品混凝土，混凝土由发包人供应。\n2.混凝土浇筑机械及方式：浇筑机械、施工方案由承包人自行确定；泵车、天泵费用由发包人承担；发包人负责提供临时便道及作业平台，承包人负责施工期间场内运输道路、浇筑作业场地修整，相关费用综合考虑在报价中。\n3.养护及温控措施：混凝土浇筑完成后及时覆盖保湿养护，养护时间满足现行规范要求；大体积混凝土需采取测温、保温、降温等防裂措施，相关费用由承包人综合考虑在报价中。\n4.模板工程：模板费用单独列项计价。\n5.施工质量要求：施工工艺、质量标准均满足设计图纸及现行施工技术规范、质量验收标准。","m3",{"$f":"56.6+13.5","v":70.1},70,4907,null,null,"损耗4%"]
[7,"砂砾垫层","1.垫层材料：砂砾垫层\n2.厚度：10cm\n3.位置：桥台锥坡基层\n4.其他：满足设计及现行施工技术、质量验收规范要求","m3",16.4,160,2624]
[8,"锥坡 人工修坡","1.锥坡清理：浆砌片石施工前，按设计坡比、坡度及标高对锥坡坡面进行人工修整、清理，清除坡面浮土、杂物、松散土体及危石，修整后坡面平整、顺直、密实，无凹凸、松动现象，坡比符合设计要求\n2.做法：满足设计及现行施工技术、质量验收规范要求\n3.计算规则：以实际修坡的锥坡面积计算","m2",300,4,1200]
[9,"锥坡 M7.5浆砌片石","1.部位：锥坡 \n2.材料品种、规格：片石 \n3.砂浆强度等级 ：M7.5 湿拌砂浆\n4.其它：未尽事宜满足设计及现行技术、质量验收规范要求","m3",71.9,430,30917]
[10,"钢筋制作、运输、安装（钢筋甲供）","1.钢筋种类、规格：种类及规格综合（钢筋甲供）\n2.钢筋连接方式：各种连接方式承包人综合考虑在报价中\n3.其他：甲方将钢筋原材运至现场指定点后，卸车、堆放、储存、场内转运、保护、及除锈等工作由承包人实施；钢筋吊运、安装、固定、保护层垫块安装以及其他相关附属及所有工作均包含在综合单价中，不另行计算\n4.计量规则：依据图纸所示，按钢筋设计重量计算，不计搭接、损耗、固定钢筋的材料、定位架立钢筋、吊装钢筋、钢板、铁丝焊条等，除甲供材外，其他附属材料均自行购买，已包含在此单价中\n5.包含完成该工作所需的人工费、材料费（含辅材）、机械费、机械进出场费、材料场内外运输、二次或多次转运费均已包含在单价内；\n6.钢筋无粘接处涂环氧酚漆二层、内包玻璃丝布二层、外缠聚乙烯胶带二层；环氧酚漆颜色、粘度、附着力、韧性等执行相关国家标准;玻璃丝布应具有良好的防腐性能,满足行业相关要求;聚乙烯胶带各项性能指标应完全符合《钢制管道聚乙烯胶粘带防腐层技术标准》(SY/T0414-2017)的规定。\n7.拉杆钢筋应做防腐处理，费用承包人综合考虑在报价中\n8.未尽事宜满足设计及现行技术、质量验收规范要求","t",{"$f":"0.052+4.883+2.1596+4.238+1.5399+25.89","v":38.7625},1500,58143.75,null,null,"损耗7%"]
["三","上部结构 "]
[11,"防震挡块混凝土浇筑（混凝土甲供）","1.混凝土强度等级：混凝土强度等级：采用商品混凝土，混凝土由发包人供应。\n2.混凝土浇筑机械及方式：浇筑机械、施工方案由承包人自行确定；泵车、天泵费用由发包人承担；发包人负责提供临时便道及作业平台，承包人负责施工期间场内运输道路、浇筑作业场地修整，相关费用综合考虑在报价中。\n3.养护及温控措施：混凝土浇筑完成后及时覆盖保湿养护，养护时间满足现行规范要求；相关费用由承包人综合考虑在报价中。\n4.模板工程：模板费用单独列项计价。\n5.施工质量要求：施工工艺、质量标准均满足设计图纸及现行施工技术规范、质量验收标准。","m3",0.92,200,{"$f":"E18*F18","v":184},null,null,"损耗4%"]
[12,"支座垫石混凝土浇筑（混凝土甲供）","1.混凝土强度等级：混凝土强度等级：采用商品混凝土，混凝土由发包人供应。\n2.混凝土浇筑机械及方式：浇筑机械、施工方案由承包人自行确定；泵车、天泵费用由发包人承担；发包人负责提供临时便道及作业平台，承包人负责施工期间场内运输道路、浇筑作业场地修整，相关费用综合考虑在报价中。\n3.养护及温控措施：混凝土浇筑完成后及时覆盖保湿养护，养护时间满足现行规范要求；相关费用由承包人综合考虑在报价中。\n4.模板工程：模板费用单独列项计价。\n5.施工质量要求：施工工艺、质量标准均满足设计图纸及现行施工技术规范、质量验收标准。","m3",0.66,200,132,null,null,"损耗4%"]
[13,"板式橡胶支座 （支座甲供）","1.材质：板式橡胶支座（支座甲供） \n2.规格、型号：GBZJ350×450×99/GBZJH300x500x86\n3.其它：未尽事宜满足设计及现行技术、质量验收规范要求","块",8,120,960]
[14,"预制T梁、翼板混凝土制安（混凝土甲供）","1.部位：T梁、翼板（含模板）\n2.规格型号：C50钢筋混凝土预制梁（混凝土甲供）\n3.工作内容：包括但不限于搭设工作平台、脚手架及模板材料、模板制作安装、安、拆、修、涂脱模剂、搬运、堆放，混凝土灌注、养护、成品梁移运存放，预留预埋件等全部工作内容；梁体运输、梁体安装、梁体就位，过跨、T梁临时固定牢固及其他附属工作；\n4.计量规则：依据图纸所示，以实际完成并经双方验收合格的混凝土工程量为准；除甲供材外：其他附属材料均自行购买，已包含在此单价中\n5.吊装及安装方式、运输方式：承包人自行考虑\n6.预制梁达到清水混凝土效果，如达不到效果自行处理，费用自行承担。\n7.预制、堆放场地由甲方指定，预制场辅材、钢模板、设备、由承包人负责\n8.预制梁与背墙之间用聚苯乙烯泡沫板填塞紧密，费用已包含在投标报价中\n9.T梁与桥台接触处顶部设置2mm隔离层，隔离层采用刷两遍沥青,铺一层塑料薄膜。\n10.T梁吊运采用兜托梁底起吊法，不设吊环，预制梁采用钢丝绳套箍吊装，吊点应设在梁端隔梁中心线内侧300mm的范围内，此处翼板上注意预留吊洞。\n11.内外侧边梁翼缘板沿桥纵向设滴水槽，滴水槽可用木条形成。\n12.未尽事宜满足设计及现行技术、质量验收规范要求","m3",{"$f":"129.8","v":129.8},790,102542,null,null,"损耗4%"]
[15,"翼板混凝土浇筑（混凝土甲供）","1.混凝土强度等级：混凝土强度等级：采用商品混凝土，混凝土由发包人供应。\n2.混凝土浇筑机械及方式：浇筑机械、施工方案由承包人自行确定；泵车、天泵费用由发包人承担；发包人负责提供临时便道及作业平台，承包人负责施工期间场内运输道路、浇筑作业场地修整，相关费用综合考虑在报价中。\n3.养护及温控措施：混凝土浇筑完成后及时覆盖保湿养护，养护时间满足现行规范要求；相关费用由承包人综合考虑在报价中。\n4.模板工程：模板费用单独列项计价。\n5.现浇与预制混凝土交界处凿毛处理保证湿接缝处新、老混凝土连接施工质量；相关费用由承包人综合考虑在报价中。\n6.施工质量要求：施工工艺、质量标准均满足设计图纸及现行施工技术规范、质量验收标准。","m3",8.4,150,1260,null,null,"损耗4%"]
[16,"横隔梁混凝土浇筑（混凝土甲供）","1.混凝土强度等级：混凝土强度等级：采用商品混凝土，混凝土由发包人供应。\n2.混凝土浇筑机械及方式：浇筑机械、施工方案由承包人自行确定；泵车、天泵费用由发包人承担；发包人负责提供临时便道及作业平台，承包人负责施工期间场内运输道路、浇筑作业场地修整，相关费用综合考虑在报价中。\n3.养护及温控措施：混凝土浇筑完成后及时覆盖保湿养护，养护时间满足现行规范要求；相关费用由承包人综合考虑在报价中。\n4.模板工程：模板费用单独列项计价。\n5.施工质量要求：施工工艺、质量标准均满足设计图纸及现行施工技术规范、质量验收标准。","m3",6,150,900,null,null,"损耗4%"]
[17,"桥面铺装混凝土浇筑（混凝土甲供）","1.混凝土强度等级：混凝土强度等级：采用商品混凝土，混凝土由发包人供应。\n2.混凝土浇筑机械及方式：浇筑机械、施工方案由承包人自行确定；泵车、天泵费用由发包人承担；发包人负责提供临时便道及作业平台，承包人负责施工期间场内运输道路、浇筑作业场地修整，相关费用综合考虑在报价中。\n3.养护及温控措施：混凝土浇筑完成后及时覆盖保湿养护，养护时间满足现行规范要求；相关费用由承包人综合考虑在报价中。\n4.模板工程：模板费用单独列项计价。\n5.在浇筑桥面现浇层混凝土前，必须保证预制梁顶面混凝土拉毛并清洗干净；相关费用由承包人综合考虑在报价中。\n5.施工质量要求：施工工艺、质量标准均满足设计图纸及现行施工技术规范、质量验收标准。","m3",26.89,100,2689,null,null,"损耗4%"]
[18,"护栏基座混凝土浇筑（混凝土甲供）","1.混凝土强度等级：混凝土强度等级：采用商品混凝土，混凝土由发包人供应。\n2.混凝土浇筑机械及方式：浇筑机械、施工方案由承包人自行确定；泵车、天泵费用由发包人承担；发包人负责提供临时便道及作业平台，承包人负责施工期间场内运输道路、浇筑作业场地修整，相关费用综合考虑在报价中。\n3.养护及温控措施：混凝土浇筑完成后及时覆盖保湿养护，养护时间满足现行规范要求；相关费用由承包人综合考虑在报价中。\n4.模板工程：模板费用单独列项计价。\n5.施工质量要求：施工工艺、质量标准均满足设计图纸及现行施工技术规范、质量验收标准。","m3",11.76,120,1411.2,null,null,"损耗4%"]
[19,"聚丙烯纤维混凝土混凝土浇筑（混凝土甲供）","1.混凝土强度等级：混凝土强度等级：采用商品混凝土，混凝土由发包人供应。\n2.混凝土浇筑机械及方式：浇筑机械、施工方案由承包人自行确定；泵车、天泵费用由发包人承担；发包人负责提供临时便道及作业平台，承包人负责施工期间场内运输道路、浇筑作业场地修整，相关费用综合考虑在报价中。\n3.养护及温控措施：混凝土浇筑完成后及时覆盖保湿养护，养护时间满足现行规范要求；相关费用由承包人综合考虑在报价中。\n4.模板工程：模板费用单独列项计价。\n5.施工质量要求：施工工艺、质量标准均满足设计图纸及现行施工技术规范、质量验收标准。","m3",1.35,200,270,null,null,"损耗4%"]
[20,"钢绞线 φs15.2（1号桥）（钢绞线、永久锚具甲供）","1.钢绞线及锚夹具、垫板卸车搬运至甲方指定地点后覆盖、制作安装预应力钢绞线：\n2.工作内容：包含搭拆临时脚手架及操作平台；材料卸车、场内材料倒运；钢绞线制束、穿束，安锚具（锚具甲供、工作锚承包人自行考虑）、锚垫板等；张拉、切割，砼凿毛、清洗孔道，压浆，封锚头，材料运输；按设计图纸为完成本项工作的全部工作内容。\n3、压浆规格：42.5 级以上的低碱普通硅酸盐水泥，压浆参数详见公路桥涵施工技术规范                                                        4、计量规则：在设计数量范围内，以现场完成的钢绞线重量计算，钢绞线长度按两端锚具间的理论长度计算，锚具外的工作长度不予计量；锚具、管道、锚板及联结钢板等不单独计量；除甲供材外，其他附属材料均自行购买，已包含在此单价中。                              \n5.未尽事宜满足设计及现行技术、质量验收规范要求","t",4.752,1800,8553.6]
[21,"波纹管 内径80mm","1.安装部位(室内、外)：室外\n2.材质：波纹管\n3.型号、规格：DN80\n4.连接方式：详设计施工图\n5.压力试验及冲洗：满足设计及规范要求  \n6.管道标识：满足设计及规范要求\n7.其它：未尽事宜满足设计及现行技术、质量验收规范要求","m",237.04,9.5,2251.88]
[22,"波纹管 内径70mm","1.安装部位(室内、外)：室外\n2.材质：波纹管\n3.型号、规格：DN70\n4.连接方式：详设计施工图\n5.压力试验及冲洗：满足设计及规范要求  \n6.管道标识：满足设计及规范要求\n7.其它：未尽事宜满足设计及现行技术、质量验收规范要求","m",355.4,9,3198.6]
[23,"钢筋制作、运输、安装（钢筋甲供）","1.钢筋种类、规格：种类及规格综合（钢筋甲供）\n2.钢筋连接方式：各种连接方式承包人综合考虑在报价中\n3.其他：甲方将钢筋原材运至现场指定点后，卸车、堆放、储存、场内转运、保护、及除锈等工作由承包人实施；钢筋吊运、安装、固定、保护层垫块安装以及其他相关附属及所有工作均包含在综合单价中，不另行计算\n4.计量规则：依据图纸所示，按钢筋设计重量计算，不计搭接、损耗、固定钢筋的材料、定位架立钢筋、吊装钢筋、钢板、铁丝焊条等，除甲供材外，其他附属材料均自行购买，已包含在此单价中\n5.包含完成该工作所需的人工费、材料费（含辅材）、机械费、机械进出场费、材料场内外运输、二次或多次转运费均已包含在单价内；\n6.钢筋无粘接处涂环氧酚漆二层、内包玻璃丝布二层、外缠聚乙烯胶带二层；环氧酚漆颜色、粘度、附着力、韧性等执行相关国家标准;玻璃丝布应具有良好的防腐性能,满足行业相关要求;聚乙烯胶带各项性能指标应完全符合《钢制管道聚乙烯胶粘带防腐层技术标准》(SY/T0414-2017)的规定。\n7.拉杆钢筋应做防腐处理，费用承包人综合考虑在报价中\n8.未尽事宜满足设计及现行技术、质量验收规范要求","t",46.058,1500,69087,null,null,"损耗7%"]
[24,"700*640*40mm镀锌钢板","1.钢材品种、规格：700*640*40mm镀锌钢板\n2.要求：梁底预埋钢板进行热浸锌处理将钢板浸入600°C左右高温融化的锌液中，使钢板表面附着锌层，锌层厚度不得小于65um\n3.防火要求：防火要求及做法详见设计施工图。\n4.其它：未尽事宜满足设计及现行技术、质量验收规范要求","t",{"$f":"140*8/1000","v":1.12},8000,8960]
[25,"桥梁伸缩缝（伸缩缝甲供）","1.材料品种：伸缩缝 （伸缩缝甲供）\n2.规格、型号：D80型 \n3.混凝土种类、强度等级：聚丙烯纤维混凝土 C50（清单另列）\n4.含伸缩缝安装、调整、固定、二转及多次转运、预埋钢筋梳理、原有混凝土剔除、基层清理、建渣外弃等\n5.其它：未尽事宜满足设计及现行技术、质量验收规范要求","m",8.6,200,1720]
[26,"φ110UPVC泄水管","1.材料品种：UPVC泄水管 \n2.管径：φ110\n3.其它：未尽事宜满足设计及现行技术、质量验收规范要求","m",4.2,15,63]
[27,"桥台处桥面切缝 3x30mm","1.缝宽：3mm\n2.缝深：30mm\n3.内填沥青玛蹄脂\n4.位置：桥台处桥面\n5.其它：未尽事宜满足设计及现行技术、质量验收规范要求","m",9,15,135]
["四","模板、脚手架工程"]
[28,"承台垫层、桥头搭板垫层、桥头搭板模板安拆","1.部位：垫层、搭板\n2.支模高度：综合\n3.模板类型：本项目承包人应根据施工经验，现场实际情况和企业自身情况综合考虑综合单价，不论采用何种材质规格及厚度的模板均不做调整，且必须达到相关要求\n4.支架材料：钢管、木支架综合，且包含使用的对拉螺杆、止水螺杆等一切费用\n5.其它：未尽事宜满足设计及现行技术、质量验收规范要求","m2",{"$f":"14.5+15.12","v":29.62},50,{"$f":"E36*F36","v":1481}]
[29,"承台模板安拆","1.部位：承台\n2.支模高度：综合\n3.模板类型：本项目承包人应根据施工经验，现场实际情况和企业自身情况综合考虑综合单价，不论采用何种材质规格及厚度的模板均不做调整，且必须达到相关要求\n4.支架材料：钢管、木支架综合，且包含使用的对拉螺杆、止水螺杆等一切费用\n5.其它：未尽事宜满足设计及现行技术、质量验收规范要求","m2",141.6,60,8496]
[30,"台帽及台身背墙模板安拆","1.部位：台帽及台身背墙\n2.支模高度：综合\n3.模板类型：本项目承包人应根据施工经验，现场实际情况和企业自身情况综合考虑综合单价，不论采用何种材质规格及厚度的模板均不做调整，且必须达到相关要求\n4.支架材料：钢管、木支架综合，且包含使用的对拉螺杆、止水螺杆等一切费用\n5.其它：未尽事宜满足设计及现行技术、质量验收规范要求","m2",433.96,70,30377.2]
[31,"上部结构现浇混凝土模板","1.部位：防震挡块、支座垫石、翼板、横隔梁、桥面铺装、护栏基座模板\n2.支模高度：综合\n3.模板类型：本项目承包人应根据施工经验，现场实际情况和企业自身情况综合考虑综合单价，不论采用何种材质规格及厚度的模板均不做调整，且必须达到相关要求\n4.支架材料：钢管、木支架综合，且包含使用的对拉螺杆、止水螺杆等一切费用\n5.模板的制作、安装、拆除、清理、打磨、定位固定、支撑体系搭设（如采用吊模）及施工全过程的模板维护、保养等全部工作内容，均由承包人自行统筹考虑，相关人工、材料、机械及所有相关费用均综合包含在报价中，不另行计取；模板的类型、规格、材质及搭设方案由承包人结合施工实际自行确定，确保满足设计及现行施工技术、质量验收规范要求，保证板结构几何尺寸、平整度及外观质量达标。\n6.其它：未尽事宜满足设计及现行技术、质量验收规范要求\n7.计算规则：按与混凝土接触面积计算","m2",{"$f":"3.89+7.8+58.8","v":70.49},60,4229.4]
[32,"脚手架地面混凝土硬化（商品混凝土甲供）","1.名称：脚手架地面混凝土硬化（混凝土甲供）\n2.施工内容：包含平整场地、碾压夯实、混凝土浇筑、表面拉毛 / 压纹、切缝伸缩缝、养护及成品保护等全部工序\n3.混凝土浇筑机械及方式：浇筑机械、施工方案由承包人自行确定；泵车、天泵费用由发包人承担；发包人负责提供临时便道及作业平台，承包人负责施工期间场内运输道路、浇筑作业场地修整，相关费用综合考虑在报价中。\n4.厚度：现场发包人确认\n5.未尽事宜满足设计及现行技术、质量验收规范要求","m3",{"v":30,"d":"30.00"},60,1800,null,null,"损耗4%"]
[33,"双排脚手架","1．名称：双排脚手架 \n2．搭设高度及方式：承包人自行综合考虑\n3.本项目承包人应根据施工经验，现场实际情况和企业自身情况综合报价，包含搭设脚手架需要的所有材料、人工、机械、辅助措施等，需满足监理、业主及相关规范要求，搭设前应编制专项方案并通过监理和业主审核认可后施工\n4.脚手架地面混凝土硬化费用另计\n5.未尽事宜满足设计及现行技术、质量验收规范要求\n6.计算规则：按所服务对象的垂直投影面积计算。","m2",{"$f":"11*27*2","v":{"v":594,"d":"594.00"}},15,8910]
[null,"合计",{"$nulls":4},{"$f":"SUM(G6:G41)","v":507841.73}]

{"sheet":"2号桥工程","index":2,"n_rows":47,"n_cols":10,"rows_kept":47,"merged":[[0,0,0,9],[1,0,3,0],[1,1,3,1],[1,2,3,2],[1,3,3,3],[1,4,3,4],[1,5,1,6],[1,7,1,8],[1,9,3,9],[2,5,3,5],[2,6,3,6],[2,7,3,7],[2,8,3,8],[4,1,4,2],[7,1,7,2],[18,1,18,2],[36,1,36,2],[46,1,46,5]]}
["2号桥梁工程劳务施工清单与报价表"]
["序号","项目名称","项目特征描述","单位","工程量","采购最高限价（含税）",null,"投标报价",null,"备注"]
[{"$nulls":5},"全费用综合单价（元）","合价（元）","含税全费用单价（元）","含税合价（元）"]
[]
["一","土石方工程"]
[1,"场内土石方挖运填\n","1.完成项目范围内桥梁工程土石方开挖、转运、回填工程，工作内容包括但不限于以下工程内容：（1）土石方开挖、石方破碎大改小、土石方转运（含红线范围内取土回填转运，运距综合考虑）、回填等；开挖的各类土、石综合（详见地勘），现场建(废)渣等综合考虑；施工区域换填、回填桥梁作业区域土石方。\n2.填方来源：来源为现场红线内原有土石方，场内综合运距1-2km。\n3.开挖、回填标高：挖填标高均应满足设计要求，误差控制在设计标高±5cm内。\n4.开挖方式、场内运输方式：承包人自行确定。\n5.开挖方案和边坡施工防护及对管线、构筑物、建筑物等采取的保护措施须经业主批准，满足安全、文明施工相关规范及规定，包含在投标报价中。\n6.其他：临边及孔洞的防护、进出车辆冲洗管理、场内外路面清洗管理、投标单位自己操作人员的劳保防护用品、临时用水用电（含水电费用）、必要安全措施等由投标单位承担；现场出现超挖和欠挖现象，造成的损失由投标单位承担；施工内容涉及的检测（复检）费用和送样检测等费用由投标单位承担；机械进、出场费用（含多次进出场）由投标单位综合考虑，包含在投标报价中。                                                    \n7.其余要求：施工过程中应满足城管和环保要求。为保证施工工期并达到环保要求，夜间施工产生的措施费及赶工费等费用包含在综合单价中，履约过程中不接受调价。\n8.工程量以现场收方为准。","m3",220.5,18,{"$f":"E6*F6","v":3969}]
[2,"土石方开挖、外弃","1.完成项目范围内桥梁工程土石方开挖外弃工程，工作内容包括但不限于以下工程内容：（1）土石方开挖、石方破碎大改小、土石方转运外弃；（2）土石围堰开挖外弃；（3）桥梁基础开挖外弃；开挖的各类土、石综合（详见地勘），现场建(废)渣等综合考虑；\n2.外弃内容：开挖的各类土、石(含淤泥)综合，现场建(废)渣等综合考虑 \n3.弃土外运权责：发包人不指定弃土场，由承包人自行踏勘现场、选定合规弃土场、确定运输路线与运距；弃土外运涉及的运输、装卸、弃土场租赁 / 征用、合规手续办理、环保水保、防护等全部费用，均包含在综合单价内，发包人不另行支付。承包人承担弃土全流程合规责任，因违规产生的行政处罚、第三方索赔及全部风险损失，均由承包人全额承担，合同价款不作调整。\n4.开挖深度：开挖标高应满足设计要求，误差控制在设计标高±5cm内。\n5.开挖方式、场内运输方式：承包人自行确定。\n6.开挖方案和边坡施工防护及对管线、构筑物、建筑物等采取的保护措施须经业主批准，满足安全、文明施工相关规范及规定，包含在投标报价中。\n10.其他：临边及孔洞的防护、进出车辆冲洗管理、场内外路面清洗管理、投标单位自己操作人员的劳保防护用品、临时用水用电（含水电费用）、必要安全措施等由投标单位承担；现场出现超挖和欠挖现象，造成的损失由投标单位承担；施工内容的检测（复检）费用和送样检测等费用由投标单位承担；机械进、出场费用（含多次进出场）由投标单位综合考虑，包含在投标报价中。                                                    \n11.其余要求：施工过程中应满足城管和环保要求。为保证施工工期并达到环保要求，夜间施工产生的措施费及赶工费等费用包含在综合单价中。\n12.工程量以现场收方为准","m3",{"$f":"880.1-220.5+3000","v":3659.6},25,91490]
["二","下部结构 "]
[3,"承台垫层、桥头搭板垫层、桥头搭板混凝土浇筑（混凝土甲供）","1.混凝土强度等级：混凝土强度等级：采用商品混凝土，混凝土由发包人供应。\n2.混凝土浇筑机械及方式：浇筑机械、施工方案由承包人自行确定；泵车、天泵费用由发包人承担；发包人负责提供临时便道及作业平台，承包人负责施工期间场内运输道路、浇筑作业场地修整，相关费用综合考虑在报价中。\n3.垫层厚度：综合考虑；\n4.模板工程：模板费用单独列项计价。\n5.施工质量要求：施工工艺、质量标准均满足设计图纸及现行施工技术规范、质量验收标准。","m3",{"$f":"33.9+17.4+17.9+31.3","v":100.5},80,8040,null,null,"损耗4%"]
[4,"承台混凝土浇筑 （混凝土甲供）","1.混凝土强度等级：混凝土强度等级：采用商品混凝土，混凝土由发包人供应。\n2.混凝土浇筑机械及方式：浇筑机械、施工方案由承包人自行确定；泵车、天泵费用由发包人承担；发包人负责提供临时便道及作业平台，承包人负责施工期间场内运输道路、浇筑作业场地修整，相关费用综合考虑在报价中。\n3.养护及温控措施：混凝土浇筑完成后及时覆盖保湿养护，养护时间满足现行规范要求；大体积混凝土需采取测温、保温、降温等防裂措施，相关费用由承包人综合考虑在报价中。\n4.模板工程：模板费用单独列项计价。\n5.施工质量要求：施工工艺、质量标准均满足设计图纸及现行施工技术规范、质量验收标准。","m3",{"$f":"338.8+217.8","v":556.6},65,36179,null,null,"损耗4%"]
[5,"台身及侧墙片石混凝土浇筑（混凝土甲供、片石乙供）","1.混凝土强度等级：片石商品砼（混凝土甲供、片石乙供）\n2.混凝土浇筑机械及方式：浇筑机械、施工方案由承包人自行确定；泵车、天泵费用由发包人承担；发包人负责提供临时便道及作业平台，承包人负责施工期间场内运输道路、浇筑作业场地修整，相关费用综合考虑在报价中。\n3.片石由承包人提供，片石量不大于结构体积的 20%，厚度150～300mm，净距 ≥150mm，不得接触钢筋与预埋件，抗压强度≥30MPa，且不低于混凝土强度等级。\n4.养护及温控措施：混凝土浇筑完成后及时覆盖保湿养护，养护时间满足现行规范要求；大体积混凝土需采取测温、保温、降温等防裂措施，相关费用由承包人综合考虑在报价中。\n5.模板工程：模板费用单独列项计价。\n6.施工质量要求：施工工艺、质量标准均满足设计图纸及现行施工技术规范、质量验收标准。","m3",313.8,115,36087,null,null,"损耗4%"]
[6,"台帽混凝土浇筑（混凝土甲供）","1.混凝土强度等级：混凝土强度等级：采用商品混凝土，混凝土由发包人供应。\n2.混凝土浇筑机械及方式：浇筑机械、施工方案由承包人自行确定；泵车、天泵费用由发包人承担；发包人负责提供临时便道及作业平台，承包人负责施工期间场内运输道路、浇筑作业场地修整，相关费用综合考虑在报价中。\n3.养护及温控措施：混凝土浇筑完成后及时覆盖保湿养护，养护时间满足现行规范要求；大体积混凝土需采取测温、保温、降温等防裂措施，相关费用由承包人综合考虑在报价中。\n4.模板工程：模板费用单独列项计价。\n5.施工质量要求：施工工艺、质量标准均满足设计图纸及现行施工技术规范、质量验收标准。","m3",{"$f":"59.3+13.5","v":72.8},70,5096,null,null,"损耗4%"]
[7,"墩身混凝土浇筑（混凝土甲供）","1.混凝土强度等级：混凝土强度等级：采用商品混凝土，混凝土由发包人供应。\n2.混凝土浇筑机械及方式：浇筑机械、施工方案由承包人自行确定；泵车、天泵费用由发包人承担；发包人负责提供临时便道及作业平台，承包人负责施工期间场内运输道路、浇筑作业场地修整，相关费用综合考虑在报价中。\n3.养护及温控措施：混凝土浇筑完成后及时覆盖保湿养护，养护时间满足现行规范要求；大体积混凝土需采取测温、保温、降温等防裂措施，相关费用由承包人综合考虑在报价中。\n4.模板工程单独计量计价\n5.施工质量要求：施工工艺、质量标准均满足设计图纸及现行施工技术规范、质量验收标准。","m3",150.5,70,10535,null,null,"损耗4%"]
[8,"盖梁混凝土浇筑（混凝土甲供）","1.混凝土强度等级：混凝土强度等级：采用商品混凝土，混凝土由发包人供应。\n2.混凝土浇筑机械及方式：浇筑机械、施工方案由承包人自行确定；泵车、天泵费用由发包人承担；发包人负责提供临时便道及作业平台，承包人负责施工期间场内运输道路、浇筑作业场地修整，相关费用综合考虑在报价中。\n3.养护及温控措施：混凝土浇筑完成后及时覆盖保湿养护，养护时间满足现行规范要求；大体积混凝土需采取测温、保温、降温等防裂措施，相关费用由承包人综合考虑在报价中。\n4.模板工程：模板费用单独列项计价。\n5.施工质量要求：施工工艺、质量标准均满足设计图纸及现行施工技术规范、质量验收标准。","m3",56.6,70,3962,null,null,"损耗4%"]
[9,"砂砾垫层","1.垫层材料：砂砾垫层\n2.厚度：10cm\n3.位置：桥台锥坡基层\n4.其他：满足设计及现行施工技术、质量验收规范要求","m3",17,160,2720]
[10,"锥坡 人工修坡","1.锥坡清理：浆砌片石施工前，按设计坡比、坡度及标高对锥坡坡面进行人工修整、清理，清除坡面浮土、杂物、松散土体及危石，修整后坡面平整、顺直、密实，无凹凸、松动现象，坡比符合设计要求\n2.做法：满足设计及现行施工技术、质量验收规范要求\n3.计算规则：以实际修坡面积计算","m2",300,4,1200]
[11,"锥坡 M7.5浆砌片石","1.部位：桥台锥坡 \n2.材料品种、规格：片石 \n3.砂浆强度等级 ：M7.5 湿拌砂浆\n4.其它：未尽事宜满足设计及现行技术、质量验收规范要求","m3",73.6,430,31648]
[12,"钢筋制作、运输、安装（钢筋甲供）","1.钢筋种类、规格：种类及规格综合（钢筋甲供）\n2.钢筋连接方式：各种连接方式承包人综合考虑在报价中\n3.其他：甲方将钢筋原材运至现场指定点后，卸车、堆放、储存、场内转运、保护、及除锈等工作由承包人实施；钢筋吊运、安装、固定、保护层垫块安装以及其他相关附属及所有工作均包含在综合单价中，不另行计算\n4.计量规则：依据图纸所示，按钢筋设计重量计算，不计搭接、损耗、固定钢筋的材料、定位架立钢筋、吊装钢筋、钢板、铁丝焊条等，除甲供材外，其他附属材料均自行购买，已包含在此单价中\n5.包含完成该工作所需的人工费、材料费（含辅材）、机械费、机械进出场费、材料场内外运输、二次或多次转运费均已包含在单价内；\n6.钢筋无粘接处涂环氧酚漆二层、内包玻璃丝布二层、外缠聚乙烯胶带二层；环氧酚漆颜色、粘度、附着力、韧性等执行相关国家标准;玻璃丝布应具有良好的防腐性能,满足行业相关要求;聚乙烯胶带各项性能指标应完全符合《钢制管道聚乙烯胶粘带防腐层技术标准》(SY/T0414-2017)的规定。\n7.拉杆钢筋应做防腐处理，费用承包人综合考虑在报价中\n8.未尽事宜满足设计及现行技术、质量验收规范要求","t",{"$f":"0.128+13.996+11.956+113.272-3.847-13.085-8.602-30.375","v":83.443},1500,125164.5,null,null,"损耗7%"]
["三","上部结构"]
[13,"预制T梁、翼板混凝土制安（混凝土甲供）","1.部位：T梁、翼板（含模板）\n2.规格型号：C50钢筋混凝土预制梁（混凝土甲供）\n3.工作内容：包括但不限于搭设工作平台、脚手架及模板材料、模板制作安装、安、拆、修、涂脱模剂、搬运、堆放，混凝土灌注、养护、成品梁移运存放，预留预埋件等全部工作内容；梁体运输、梁体安装、梁体就位，过跨、T梁临时固定牢固及其他附属工作；\n4.计量规则：依据图纸所示，以实际完成并经双方验收合格的混凝土工程量为准；除甲供材外：其他附属材料均自行购买，已包含在此单价中\n5.吊装及安装方式、运输方式：承包人自行考虑\n6.预制梁达到清水混凝土效果，如达不到效果自行处理，费用自行承担。\n7.预制、堆放场地由甲方指定，预制场辅材、钢模板、设备、由承包人负责\n8.预制梁与背墙之间用聚苯乙烯泡沫板填塞紧密，费用已包含在投标报价中\n9.T梁与桥台接触处顶部设置2mm隔离层，隔离层采用刷两遍沥青,铺一层塑料薄膜。\n10.T梁吊运采用兜托梁底起吊法，不设吊环，预制梁采用钢丝绳套箍吊装，吊点应设在梁端隔梁中心线内侧300mm的范围内，此处翼板上注意预留吊洞。\n11.内外侧边梁翼缘板沿桥纵向设滴水槽，滴水槽可用木条形成。\n12.未尽事宜满足设计及现行技术、质量验收规范要求","m3",389.5,790,{"$f":"E20*F20","v":307705},null,null,"损耗4%"]
[14,"翼板混凝土浇筑（混凝土甲供）","1.混凝土强度等级：混凝土强度等级：采用商品混凝土，混凝土由发包人供应。\n2.混凝土浇筑机械及方式：浇筑机械、施工方案由承包人自行确定；泵车、天泵费用由发包人承担；发包人负责提供临时便道及作业平台，承包人负责施工期间场内运输道路、浇筑作业场地修整，相关费用综合考虑在报价中。\n3.养护及温控措施：混凝土浇筑完成后及时覆盖保湿养护，养护时间满足现行规范要求；相关费用由承包人综合考虑在报价中。\n4.模板工程：模板费用单独列项计价。\n5.现浇与预制混凝土交界处凿毛处理保证湿接缝处新、老混凝土连接施工质量；相关费用由承包人综合考虑在报价中。\n6.施工质量要求：施工工艺、质量标准均满足设计图纸及现行施工技术规范、质量验收标准。","m3",25.1,150,3765,null,null,"损耗4%"]
[15,"横隔梁混凝土浇筑（混凝土甲供）","1.混凝土强度等级：混凝土强度等级：采用商品混凝土，混凝土由发包人供应。\n2.混凝土浇筑机械及方式：浇筑机械、施工方案由承包人自行确定；泵车、天泵费用由发包人承担；发包人负责提供临时便道及作业平台，承包人负责施工期间场内运输道路、浇筑作业场地修整，相关费用综合考虑在报价中。\n3.养护及温控措施：混凝土浇筑完成后及时覆盖保湿养护，养护时间满足现行规范要求；相关费用由承包人综合考虑在报价中。\n4.模板工程：模板费用单独列项计价。\n5.施工质量要求：施工工艺、质量标准均满足设计图纸及现行施工技术规范、质量验收标准。","m3",18,150,2700,null,null,"损耗4%"]
[16,"桥面铺装混凝土浇筑（混凝土甲供）","1.混凝土强度等级：混凝土强度等级：采用商品混凝土，混凝土由发包人供应。\n2.混凝土浇筑机械及方式：浇筑机械、施工方案由承包人自行确定；泵车、天泵费用由发包人承担；发包人负责提供临时便道及作业平台，承包人负责施工期间场内运输道路、浇筑作业场地修整，相关费用综合考虑在报价中。\n3.养护及温控措施：混凝土浇筑完成后及时覆盖保湿养护，养护时间满足现行规范要求；相关费用由承包人综合考虑在报价中。\n4.模板工程：模板费用单独列项计价。\n5.在浇筑桥面现浇层混凝土前，必须保证预制梁顶面混凝土拉毛并清洗干净；相关费用由承包人综合考虑在报价中。\n5.施工质量要求：施工工艺、质量标准均满足设计图纸及现行施工技术规范、质量验收标准。","m3",80.89,100,8089,null,null,"损耗4%"]
[17,"护栏基座混凝土浇筑（混凝土甲供）","1.混凝土强度等级：混凝土强度等级：采用商品混凝土，混凝土由发包人供应。\n2.混凝土浇筑机械及方式：浇筑机械、施工方案由承包人自行确定；泵车、天泵费用由发包人承担；发包人负责提供临时便道及作业平台，承包人负责施工期间场内运输道路、浇筑作业场地修整，相关费用综合考虑在报价中。\n3.养护及温控措施：混凝土浇筑完成后及时覆盖保湿养护，养护时间满足现行规范要求；相关费用由承包人综合考虑在报价中。\n4.模板工程：模板费用单独列项计价。\n5.施工质量要求：施工工艺、质量标准均满足设计图纸及现行施工技术规范、质量验收标准。","m3",48.2,120,5784,null,null,"损耗4%"]
[18,"防震挡块混凝土浇筑（混凝土甲供）","1.混凝土强度等级：混凝土强度等级：采用商品混凝土，混凝土由发包人供应。\n2.混凝土浇筑机械及方式：浇筑机械、施工方案由承包人自行确定；泵车、天泵费用由发包人承担；发包人负责提供临时便道及作业平台，承包人负责施工期间场内运输道路、浇筑作业场地修整，相关费用综合考虑在报价中。\n3.养护及温控措施：混凝土浇筑完成后及时覆盖保湿养护，养护时间满足现行规范要求；相关费用由承包人综合考虑在报价中。\n4.模板工程：模板费用单独列项计价。\n5.施工质量要求：施工工艺、质量标准均满足设计图纸及现行施工技术规范、质量验收标准。","m3",0.94,200,188,null,null,"损耗4%"]
[19,"支座垫石混凝土浇筑（混凝土甲供）","1.混凝土强度等级：混凝土强度等级：采用商品混凝土，混凝土由发包人供应。\n2.混凝土浇筑机械及方式：浇筑机械、施工方案由承包人自行确定；泵车、天泵费用由发包人承担；发包人负责提供临时便道及作业平台，承包人负责施工期间场内运输道路、浇筑作业场地修整，相关费用综合考虑在报价中。\n3.养护及温控措施：混凝土浇筑完成后及时覆盖保湿养护，养护时间满足现行规范要求；相关费用由承包人综合考虑在报价中。\n4.模板工程：模板费用单独列项计价。\n5.施工质量要求：施工工艺、质量标准均满足设计图纸及现行施工技术规范、质量验收标准。","m3",2,200,400,null,null,"损耗4%"]
[20,"聚丙烯纤维混凝土混凝土浇筑（混凝土甲供）","1.混凝土强度等级：混凝土强度等级：采用商品混凝土，混凝土由发包人供应。\n2.混凝土浇筑机械及方式：浇筑机械、施工方案由承包人自行确定；泵车、天泵费用由发包人承担；发包人负责提供临时便道及作业平台，承包人负责施工期间场内运输道路、浇筑作业场地修整，相关费用综合考虑在报价中。\n3.养护及温控措施：混凝土浇筑完成后及时覆盖保湿养护，养护时间满足现行规范要求；相关费用由承包人综合考虑在报价中。\n4.模板工程：模板费用单独列项计价。\n5.施工质量要求：施工工艺、质量标准均满足设计图纸及现行施工技术规范、质量验收标准。","m3",2.6,200,520,null,null,"损耗4%"]
[21,"梁端封锚混凝土浇筑（混凝土甲供）","1.混凝土强度等级：混凝土强度等级：采用商品混凝土，混凝土由发包人供应。\n2.混凝土浇筑机械及方式：浇筑机械、施工方案由承包人自行确定；泵车、天泵费用由发包人承担；发包人负责提供临时便道及作业平台，承包人负责施工期间场内运输道路、浇筑作业场地修整，相关费用综合考虑在报价中。\n3.养护及温控措施：混凝土浇筑完成后及时覆盖保湿养护，养护时间满足现行规范要求；相关费用由承包人综合考虑在报价中。\n4.模板工程：模板费用单独列项计价。\n5.施工质量要求：施工工艺、质量标准均满足设计图纸及现行施工技术规范、质量验收标准。","m3",1.3,200,260,null,null,"损耗4%"]
[22,"钢绞线 φs15.2（2号桥）（钢绞线、永久锚具甲供）","1.钢绞线及锚夹具、垫板卸车搬运至甲方指定地点后覆盖、制作安装预应力钢绞线：\n2.工作内容：包含搭拆临时脚手架及操作平台；材料卸车、场内材料倒运；钢绞线制束、穿束，安锚具（锚具甲供、工作锚承包人自行考虑）、锚垫板等；张拉、切割，砼凿毛、清洗孔道，压浆，封锚头，材料运输；按设计图纸为完成本项工作的全部工作内容。\n3、压浆规格：42.5 级以上的低碱普通硅酸盐水泥，压浆参数详见公路桥涵施工技术规范                                                        4、计量规则：在设计数量范围内，以现场完成的钢绞线重量计算，钢绞线长度按两端锚具间的理论长度计算，锚具外的工作长度不予计量；锚具、管道、锚板及联结钢板等不单独计量；除甲供材外，其他附属材料均自行购买，已包含在此单价中。                              \n5.未尽事宜满足设计及现行技术、质量验收规范要求","t",14.253,1800,25655.4]
[23,"波纹管 内径80mm","1.安装部位(室内、外)：室外\n2.材质：波纹管\n3.型号、规格：DN80\n4.连接方式：详设计施工图\n5.压力试验及冲洗：满足设计及规范要求  \n6.管道标识：满足设计及规范要求\n7.其它：未尽事宜满足设计及现行技术、质量验收规范要求","m",711.1,9.5,6755.45]
[24,"波纹管 内径70mm","1.安装部位(室内、外)：室外\n2.材质：波纹管\n3.型号、规格：DN70\n4.连接方式：详设计施工图\n5.压力试验及冲洗：满足设计及规范要求  \n6.管道标识：满足设计及规范要求\n7.其它：未尽事宜满足设计及现行技术、质量验收规范要求","m",1066.2,9,9595.8]
[25,"钢筋制作、运输、安装（钢筋甲供）","1.钢筋种类、规格：种类及规格综合（钢筋甲供）\n2.钢筋连接方式：各种连接方式承包人综合考虑在报价中\n3.其他：甲方将钢筋原材运至现场指定点后，卸车、堆放、储存、场内转运、保护、及除锈等工作由承包人实施；钢筋吊运、安装、固定、保护层垫块安装以及其他相关附属及所有工作均包含在综合单价中，不另行计算\n4.计量规则：依据图纸所示，按钢筋设计重量计算，不计搭接、损耗、固定钢筋的材料、定位架立钢筋、吊装钢筋、钢板、铁丝焊条等，除甲供材外，其他附属材料均自行购买，已包含在此单价中\n5.包含完成该工作所需的人工费、材料费（含辅材）、机械费、机械进出场费、材料场内外运输、二次或多次转运费均已包含在单价内；\n6.钢筋无粘接处涂环氧酚漆二层、内包玻璃丝布二层、外缠聚乙烯胶带二层；环氧酚漆颜色、粘度、附着力、韧性等执行相关国家标准;玻璃丝布应具有良好的防腐性能,满足行业相关要求;聚乙烯胶带各项性能指标应完全符合《钢制管道聚乙烯胶粘带防腐层技术标准》(SY/T0414-2017)的规定。\n7.拉杆钢筋应做防腐处理，费用承包人综合考虑在报价中\n8.未尽事宜满足设计及现行技术、质量验收规范要求","t",140.706,1500,211059,null,null,"损耗7%"]
[26,"700*640*40mm镀锌钢板","1.钢材品种、规格：700*640*40mm镀锌钢板\n2.要求：梁底预埋钢板进行热浸锌处理将钢板浸入600°C左右高温融化的锌液中，使钢板表面附着锌层，锌层厚度不得小于65um\n3.防火要求：防火要求及做法详见设计施工图。\n4.其它：未尽事宜满足设计及现行技术、质量验收规范要求","t",4.632,8000,37056]
[27,"板式橡胶支座 GBZJ350×450×99（支座甲供）","1.材质：板式橡胶支座（主材甲供） \n2.规格、型号：GBZJ350×450×99\n3.其它：未尽事宜满足设计及现行技术、质量验收规范要求","块",24,120,2880]
[28,"桥梁伸缩缝（伸缩缝甲供）","1.材料品种：伸缩缝 （伸缩缝甲供）\n2.规格、型号：D80型 \n3.混凝土种类、强度等级：聚丙烯纤维混凝土 C50（清单另列）\n4.含伸缩缝安装、调整、固定、二转及多次转运、预埋钢筋梳理、原有混凝土剔除、基层清理、建渣外弃等\n5.其它：未尽事宜满足设计及现行技术、质量验收规范要求","m",17.2,200,3440]
[29,"φ110UPVC泄水管","1.材料品种：UPVC泄水管 \n2.管径：φ110\n3.其它：未尽事宜满足设计及现行技术、质量验收规范要求","m",12.6,15,189]
["四","模板、脚手架工程"]
[30,"承台垫层、桥头搭板垫层、桥头搭板模板安拆","1.部位：垫层、搭板\n2.支模高度：综合\n3.模板类型：本项目承包人应根据施工经验，现场实际情况和企业自身情况综合考虑综合单价，不论采用何种材质规格及厚度的模板均不做调整，且必须达到相关要求\n4.支架材料：钢管、木支架综合，且包含使用的对拉螺杆、止水螺杆等一切费用\n5.其它：未尽事宜满足设计及现行技术、质量验收规范要求","m2",{"$f":"35.1+75.6","v":110.7},50,{"$f":"E38*F38","v":5535}]
[31,"承台模板安拆","1.部位：承台\n2.支模高度：综合\n3.模板类型：本项目承包人应根据施工经验，现场实际情况和企业自身情况综合考虑综合单价，不论采用何种材质规格及厚度的模板均不做调整，且必须达到相关要求\n4.支架材料：钢管、木支架综合，且包含使用的对拉螺杆、止水螺杆等一切费用\n5.其它：未尽事宜满足设计及现行技术、质量验收规范要求","m2",319,60,19140]
[32,"台帽及台身背墙模板安拆","1.部位：台帽及台身背墙\n2.支模高度：综合\n3.模板类型：本项目承包人应根据施工经验，现场实际情况和企业自身情况综合考虑综合单价，不论采用何种材质规格及厚度的模板均不做调整，且必须达到相关要求\n4.支架材料：钢管、木支架综合，且包含使用的对拉螺杆、止水螺杆等一切费用\n5.其它：未尽事宜满足设计及现行技术、质量验收规范要求","m2",327.44,70,22920.8]
[33,"盖梁模板安拆","1.部位：盖梁\n2.支模高度：综合\n3.模板类型：本项目承包人应根据施工经验，现场实际情况和企业自身情况综合考虑综合单价，不论采用何种材质规格及厚度的模板均不做调整，且必须达到相关要求\n4.支架材料：钢管、木支架综合，且包含使用的对拉螺杆、止水螺杆等一切费用\n5.其它：未尽事宜满足设计及现行技术、质量验收规范要求","m2",115,104,11960]
[34,"墩身模板安拆","1.部位：墩身\n2.支模高度：综合\n3.模板类型：本项目承包人应根据施工经验，现场实际情况和企业自身情况综合考虑综合单价，不论采用何种材质规格及厚度的模板均不做调整，且必须达到相关要求\n4.支架材料：钢管、木支架综合，且包含使用的对拉螺杆、止水螺杆等一切费用\n5.包含花瓶墩、墩身模板材料及模板安拆费\n6.其它：未尽事宜满足设计及现行技术、质量验收规范要求","m2",307.07,150,46060.5]
[35,"上部结构现浇混凝土模板","1.部位：防震挡块、支座垫石、翼板、横隔梁、桥面铺装、护栏基座、梁端封锚模板\n2.支模高度：综合\n3.模板类型：本项目承包人应根据施工经验，现场实际情况和企业自身情况综合考虑综合单价，不论采用何种材质规格及厚度的模板均不做调整，且必须达到相关要求\n4.支架材料：钢管、木支架综合，且包含使用的对拉螺杆、止水螺杆等一切费用\n5.模板的制作、安装、拆除、清理、打磨、定位固定、支撑体系搭设（如采用吊模）及施工全过程的模板维护、保养等全部工作内容，均由承包人自行统筹考虑，相关人工、材料、机械及所有相关费用均综合包含在报价中，不另行计取；模板的类型、规格、材质及搭设方案由承包人结合施工实际自行确定，确保满足设计及现行施工技术、质量验收规范要求，保证板结构几何尺寸、平整度及外观质量达标。\n6.其它：未尽事宜满足设计及现行技术、质量验收规范要求\n7.计算规则：按与混凝土接触面积计算","m2",{"$f":"36.6+22.22+122.8+237.05","v":418.67},60,25120.2]
[36,"墩身支架 满堂式钢管脚手架","1．名称：满堂式钢管支架 \n2．搭设高度及方式：承包人自行综合考虑\n3.本项目承包人应根据施工经验，现场实际情况和企业自身情况综合报价，包含搭设脚手架需要的所有材料、人工、机械、辅助措施等，需满足监理、业主及相关规范要求，搭设前应编制专项方案并通过监理和业主审核认可后施工\n4.未尽事宜满足设计及现行技术、质量验收规范要求\n5.脚手架地面混凝土硬化费用另计\n6.工作平台搭设、租赁费用由报价人综合考虑在投标报价中，梯笼以该项以立方计算\n7.计算规则：以现场实际搭设满堂脚手架扣除结构物按立方计算，工程量不得大于经发包人审批的施工方案工程量。","m3",{"$f":"(84-20)*(4.8+8.1)","v":825.6},22,18163.2]
[37,"脚手架地面混凝土硬化（商品混凝土甲供）","1.名称：脚手架地面混凝土硬化（混凝土甲供）\n2.施工内容：包含平整场地、碾压夯实、混凝土浇筑、表面拉毛 / 压纹、切缝伸缩缝、养护及成品保护等全部工序\n3.混凝土浇筑机械及方式：浇筑机械、施工方案由承包人自行确定；泵车、天泵费用由发包人承担；发包人负责提供临时便道及作业平台，承包人负责施工期间场内运输道路、浇筑作业场地修整，相关费用综合考虑在报价中。\n4.厚度：现场发包人确认\n5.未尽事宜满足设计及现行技术、质量验收规范要求","m3",{"v":50,"d":"50.00"},60,3000,null,null,"损耗4%"]
[38,"双排脚手架","1．名称：双排脚手架 \n2．搭设高度及方式：承包人自行综合考虑\n3.本项目承包人应根据施工经验，现场实际情况和企业自身情况综合报价，包含搭设脚手架需要的所有材料、人工、机械、辅助措施等，需满足监理、业主及相关规范要求，搭设前应编制专项方案并通过监理和业主审核认可后施工\n4.脚手架地面混凝土硬化费用另计\n5.未尽事宜满足设计及现行技术、质量验收规范要求\n6.计算规则：按所服务对象的垂直投影面积计算。","m2",{"$f":"4*26*2","v":208},15,3120]
[null,"合计",{"$nulls":4},{"$f":"SUM(G5:G46)","v":1137151.85}]

{"sheet":"3号桥工程","index":3,"n_rows":47,"n_cols":10,"rows_kept":47,"merged":[[0,0,0,9],[1,0,3,0],[1,1,3,1],[1,2,3,2],[1,3,3,3],[1,4,3,4],[1,5,1,6],[1,7,1,8],[1,9,3,9],[2,5,3,5],[2,6,3,6],[2,7,3,7],[2,8,3,8],[4,1,4,2],[7,1,7,2],[18,1,18,2],[36,1,36,2],[46,1,46,5]]}
["3号桥梁工程劳务施工清单与报价表"]
["序号","项目名称","项目特征描述","单位","工程量","采购最高限价（含税）",null,"投标报价",null,"备注"]
[{"$nulls":5},"全费用综合单价（元）","合价（元）","含税全费用单价（元）","含税合价（元）"]
[]
["一","土石方工程"]
[1,"场内土石方挖运填\n","1.完成项目范围内桥梁工程土石方开挖、转运、回填工程，工作内容包括但不限于以下工程内容：（1）土石方开挖、石方破碎大改小、土石方转运（含红线范围内取土回填转运，运距综合考虑）、回填等；开挖的各类土、石综合（详见地勘），现场建(废)渣等综合考虑；施工区域换填、回填桥梁作业区域土石方。\n2.填方来源：来源为现场红线内原有土石方，场内综合运距1-2km。\n3.开挖、回填标高：挖填标高均应满足设计要求，误差控制在设计标高±5cm内。\n4.开挖方式、场内运输方式：承包人自行确定。\n5.开挖方案和边坡施工防护及对管线、构筑物、建筑物等采取的保护措施须经业主批准，满足安全、文明施工相关规范及规定，包含在投标报价中。\n6.其他：临边及孔洞的防护、进出车辆冲洗管理、场内外路面清洗管理、投标单位自己操作人员的劳保防护用品、临时用水用电（含水电费用）、必要安全措施等由投标单位承担；现场出现超挖和欠挖现象，造成的损失由投标单位承担；施工内容涉及的检测（复检）费用和送样检测等费用由投标单位承担；机械进、出场费用（含多次进出场）由投标单位综合考虑，包含在投标报价中。                                                    \n7.其余要求：施工过程中应满足城管和环保要求。为保证施工工期并达到环保要求，夜间施工产生的措施费及赶工费等费用包含在综合单价中，履约过程中不接受调价。\n8.工程量以现场收方为准。","m3",6.5,18,{"$f":"E6*F6","v":117}]
[2,"土石方开挖、外弃","1.完成项目范围内桥梁工程土石方开挖外弃工程，工作内容包括但不限于以下工程内容：（1）土石方开挖、石方破碎大改小、土石方转运外弃；（2）土石围堰开挖外弃；（3）桥梁基础开挖外弃；开挖的各类土、石综合（详见地勘），现场建(废)渣等综合考虑；\n2.外弃内容：开挖的各类土、石(含淤泥)综合，现场建(废)渣等综合考虑 \n3.弃土外运权责：发包人不指定弃土场，由承包人自行踏勘现场、选定合规弃土场、确定运输路线与运距；弃土外运涉及的运输、装卸、弃土场租赁 / 征用、合规手续办理、环保水保、防护等全部费用，均包含在综合单价内，发包人不另行支付。承包人承担弃土全流程合规责任，因违规产生的行政处罚、第三方索赔及全部风险损失，均由承包人全额承担，合同价款不作调整。\n4.开挖深度：开挖标高应满足设计要求，误差控制在设计标高±5cm内。\n5.开挖方式、场内运输方式：承包人自行确定。\n6.开挖方案和边坡施工防护及对管线、构筑物、建筑物等采取的保护措施须经业主批准，满足安全、文明施工相关规范及规定，包含在投标报价中。\n10.其他：临边及孔洞的防护、进出车辆冲洗管理、场内外路面清洗管理、投标单位自己操作人员的劳保防护用品、临时用水用电（含水电费用）、必要安全措施等由投标单位承担；现场出现超挖和欠挖现象，造成的损失由投标单位承担；施工内容的检测（复检）费用和送样检测等费用由投标单位承担；机械进、出场费用（含多次进出场）由投标单位综合考虑，包含在投标报价中。                                                    \n11.其余要求：施工过程中应满足城管和环保要求。为保证施工工期并达到环保要求，夜间施工产生的措施费及赶工费等费用包含在综合单价中。\n12.工程量以现场收方为准","m3",{"$f":"137.2-6.5+3000","v":3130.7},25,78267.5]
["二","下部结构 "]
[3,"承台垫层、桥头搭板垫层、桥头搭板混凝土浇筑（混凝土甲供）","1.混凝土强度等级：混凝土强度等级：采用商品混凝土，混凝土由发包人供应。\n2.混凝土浇筑机械及方式：浇筑机械、施工方案由承包人自行确定；泵车、天泵费用由发包人承担；发包人负责提供临时便道及作业平台，承包人负责施工期间场内运输道路、浇筑作业场地修整，相关费用综合考虑在报价中。\n3.垫层厚度：综合考虑；\n4.模板工程：模板费用单独列项计价。\n5.施工质量要求：施工工艺、质量标准均满足设计图纸及现行施工技术规范、质量验收标准。","m3",{"$f":"9.57+6.9+17.9+31.3","v":65.67},80,5253.6,null,null,"损耗4%"]
[4,"承台混凝土浇筑 （混凝土甲供）","1.混凝土强度等级：混凝土强度等级：采用商品混凝土，混凝土由发包人供应。\n2.混凝土浇筑机械及方式：浇筑机械、施工方案由承包人自行确定；泵车、天泵费用由发包人承担；发包人负责提供临时便道及作业平台，承包人负责施工期间场内运输道路、浇筑作业场地修整，相关费用综合考虑在报价中。\n3.养护及温控措施：混凝土浇筑完成后及时覆盖保湿养护，养护时间满足现行规范要求；大体积混凝土需采取测温、保温、降温等防裂措施，相关费用由承包人综合考虑在报价中。\n4.模板工程：模板费用单独列项计价。\n5.施工质量要求：施工工艺、质量标准均满足设计图纸及现行施工技术规范、质量验收标准。","m3",85.8,65,5577,null,null,"损耗4%"]
[5,"台帽混凝土浇筑（混凝土甲供）","1.混凝土强度等级：混凝土强度等级：采用商品混凝土，混凝土由发包人供应。\n2.混凝土浇筑机械及方式：浇筑机械、施工方案由承包人自行确定；泵车、天泵费用由发包人承担；发包人负责提供临时便道及作业平台，承包人负责施工期间场内运输道路、浇筑作业场地修整，相关费用综合考虑在报价中。\n3.养护及温控措施：混凝土浇筑完成后及时覆盖保湿养护，养护时间满足现行规范要求；大体积混凝土需采取测温、保温、降温等防裂措施，相关费用由承包人综合考虑在报价中。\n4.模板工程：模板费用单独列项计价。\n5.施工质量要求：施工工艺、质量标准均满足设计图纸及现行施工技术规范、质量验收标准。","m3",60.6,70,4242,null,null,"损耗4%"]
[6,"耳墙及背墙混凝土浇筑（混凝土甲供）","1.混凝土强度等级：混凝土强度等级：采用商品混凝土，混凝土由发包人供应。\n2.混凝土浇筑机械及方式：浇筑机械、施工方案由承包人自行确定；泵车、天泵费用由发包人承担；发包人负责提供临时便道及作业平台，承包人负责施工期间场内运输道路、浇筑作业场地修整，相关费用综合考虑在报价中。\n3.厚度：综合考虑；\n4.模板工程：模板费用单独列项计价。\n5.施工质量要求：施工工艺、质量标准均满足设计图纸及现行施工技术规范、质量验收标准。","m3",44.8,65,2912,null,null,"损耗4%"]
[7,"墩身混凝土浇筑（混凝土甲供）","1.混凝土强度等级：混凝土强度等级：采用商品混凝土，混凝土由发包人供应。\n2.混凝土浇筑机械及方式：浇筑机械、施工方案由承包人自行确定；泵车、天泵费用由发包人承担；发包人负责提供临时便道及作业平台，承包人负责施工期间场内运输道路、浇筑作业场地修整，相关费用综合考虑在报价中。\n3.养护及温控措施：混凝土浇筑完成后及时覆盖保湿养护，养护时间满足现行规范要求；大体积混凝土需采取测温、保温、降温等防裂措施，相关费用由承包人综合考虑在报价中。\n4.模板工程单独计量计价\n5.施工质量要求：施工工艺、质量标准均满足设计图纸及现行施工技术规范、质量验收标准。","m3",81.6,70,5712,null,null,"损耗4%"]
[8,"盖梁混凝土浇筑（混凝土甲供）","1.混凝土强度等级：混凝土强度等级：采用商品混凝土，混凝土由发包人供应。\n2.混凝土浇筑机械及方式：浇筑机械、施工方案由承包人自行确定；泵车、天泵费用由发包人承担；发包人负责提供临时便道及作业平台，承包人负责施工期间场内运输道路、浇筑作业场地修整，相关费用综合考虑在报价中。\n3.养护及温控措施：混凝土浇筑完成后及时覆盖保湿养护，养护时间满足现行规范要求；大体积混凝土需采取测温、保温、降温等防裂措施，相关费用由承包人综合考虑在报价中。\n4.模板工程：模板费用单独列项计价。\n5.施工质量要求：施工工艺、质量标准均满足设计图纸及现行施工技术规范、质量验收标准。","m3",45.8,70,3206,null,null,"损耗4%"]
[9,"砂砾垫层","1.垫层材料：砂砾垫层\n2.厚度：10cm\n3.位置：桥台锥坡基层\n4.其他：满足设计及现行施工技术、质量验收规范要求","m3",1,160,160]
[10,"锥坡 人工修坡","1.锥坡清理：浆砌片石施工前，按设计坡比、坡度及标高对锥坡坡面进行人工修整、清理，清除坡面浮土、杂物、松散土体及危石，修整后坡面平整、顺直、密实，无凹凸、松动现象，坡比符合设计要求\n2.做法：满足设计及现行施工技术、质量验收规范要求\n3.计算规则：以实际修坡面积计算","m2",300,4,1200]
[11,"锥坡 M7.5浆砌片石","1.部位：桥台锥坡 \n2.材料品种、规格：片石 \n3.砂浆强度等级 ：M7.5 湿拌砂浆\n4.其它：未尽事宜满足设计及现行技术、质量验收规范要求","m3",7.1,430,3053]
[12,"钢筋制作、运输、安装（钢筋甲供）","1.钢筋种类、规格：种类及规格综合（钢筋甲供）\n2.钢筋连接方式：各种连接方式承包人综合考虑在报价中\n3.其他：甲方将钢筋原材运至现场指定点后，卸车、堆放、储存、场内转运、保护、及除锈等工作由承包人实施；钢筋吊运、安装、固定、保护层垫块安装以及其他相关附属及所有工作均包含在综合单价中，不另行计算\n4.计量规则：依据图纸所示，按钢筋设计重量计算，不计搭接、损耗、固定钢筋的材料、定位架立钢筋、吊装钢筋、钢板、铁丝焊条等，除甲供材外，其他附属材料均自行购买，已包含在此单价中\n5.包含完成该工作所需的人工费、材料费（含辅材）、机械费、机械进出场费、材料场内外运输、二次或多次转运费均已包含在单价内；\n6.钢筋无粘接处涂环氧酚漆二层、内包玻璃丝布二层、外缠聚乙烯胶带二层；环氧酚漆颜色、粘度、附着力、韧性等执行相关国家标准;玻璃丝布应具有良好的防腐性能,满足行业相关要求;聚乙烯胶带各项性能指标应完全符合《钢制管道聚乙烯胶粘带防腐层技术标准》(SY/T0414-2017)的规定。\n7.拉杆钢筋应做防腐处理，费用承包人综合考虑在报价中\n8.未尽事宜满足设计及现行技术、质量验收规范要求","t",{"$f":"0.404+8.596+7.596+27.386","v":43.982},1500,65973,null,null,"损耗7%"]
["三","上部结构"]
[13,"预制T梁、翼板混凝土制安（混凝土甲供）","1.部位：T梁、翼板（含模板）\n2.规格型号：C50钢筋混凝土预制梁（混凝土甲供）\n3.工作内容：工作内容：包括但不限于搭设工作平台、脚手架及模板材料、模板制作安装、安、拆、修、涂脱模剂、搬运、堆放，混凝土灌注、养护、成品梁移运存放，预留预埋件等全部工作内容；梁体运输、梁体安装、梁体就位，过跨、T梁临时固定牢固及其他附属工作；\n4.计量规则：依据图纸所示，以实际完成并经双方验收合格的混凝土工程量为准；除甲供材外：其他附属材料均自行购买，已包含在此单价中\n5.吊装及安装方式、运输方式：承包人自行考虑\n6.预制梁达到清水混凝土效果，如达不到效果自行处理，费用自行承担。\n7.预制、堆放场地由甲方指定，预制场辅材、钢模板、设备、由承包人负责\n8.预制梁与背墙之间用聚苯乙烯泡沫板填塞紧密，费用已包含在投标报价中\n9.T梁与桥台接触处顶部设置2mm隔离层，隔离层采用刷两遍沥青,铺一层塑料薄膜。\n10.T梁吊运采用兜托梁底起吊法，不设吊环，预制梁采用钢丝绳套箍吊装，吊点应设在梁端隔梁中心线内侧300mm的范围内，此处翼板上注意预留吊洞。\n11.内外侧边梁翼缘板沿桥纵向设滴水槽，滴水槽可用木条形成。\n12.未尽事宜满足设计及现行技术、质量验收规范要求","m3",389.5,790,{"$f":"E20*F20","v":307705},null,null,"损耗4%"]
[14,"翼板混凝土浇筑（混凝土甲供）","1.混凝土强度等级：混凝土强度等级：采用商品混凝土，混凝土由发包人供应。\n2.混凝土浇筑机械及方式：浇筑机械、施工方案由承包人自行确定；泵车、天泵费用由发包人承担；发包人负责提供临时便道及作业平台，承包人负责施工期间场内运输道路、浇筑作业场地修整，相关费用综合考虑在报价中。\n3.养护及温控措施：混凝土浇筑完成后及时覆盖保湿养护，养护时间满足现行规范要求；相关费用由承包人综合考虑在报价中。\n4.模板工程：模板费用单独列项计价。\n5.现浇与预制混凝土交界处凿毛处理保证湿接缝处新、老混凝土连接施工质量；相关费用由承包人综合考虑在报价中。\n6.施工质量要求：施工工艺、质量标准均满足设计图纸及现行施工技术规范、质量验收标准。","m3",25.1,150,3765,null,null,"损耗4%"]
[15,"横隔梁混凝土浇筑（混凝土甲供）","1.混凝土强度等级：混凝土强度等级：采用商品混凝土，混凝土由发包人供应。\n2.混凝土浇筑机械及方式：浇筑机械、施工方案由承包人自行确定；泵车、天泵费用由发包人承担；发包人负责提供临时便道及作业平台，承包人负责施工期间场内运输道路、浇筑作业场地修整，相关费用综合考虑在报价中。\n3.养护及温控措施：混凝土浇筑完成后及时覆盖保湿养护，养护时间满足现行规范要求；相关费用由承包人综合考虑在报价中。\n4.模板工程：模板费用单独列项计价。\n5.施工质量要求：施工工艺、质量标准均满足设计图纸及现行施工技术规范、质量验收标准。","m3",18,150,2700,null,null,"损耗4%"]
[16,"桥面铺装混凝土浇筑（混凝土甲供）","1.混凝土强度等级：混凝土强度等级：采用商品混凝土，混凝土由发包人供应。\n2.混凝土浇筑机械及方式：浇筑机械、施工方案由承包人自行确定；泵车、天泵费用由发包人承担；发包人负责提供临时便道及作业平台，承包人负责施工期间场内运输道路、浇筑作业场地修整，相关费用综合考虑在报价中。\n3.养护及温控措施：混凝土浇筑完成后及时覆盖保湿养护，养护时间满足现行规范要求；相关费用由承包人综合考虑在报价中。\n4.模板工程：模板费用单独列项计价。\n5.在浇筑桥面现浇层混凝土前，必须保证预制梁顶面混凝土拉毛并清洗干净；相关费用由承包人综合考虑在报价中。\n5.施工质量要求：施工工艺、质量标准均满足设计图纸及现行施工技术规范、质量验收标准。","m3",80.89,100,8089,null,null,"损耗4%"]
[17,"护栏基座混凝土浇筑（混凝土甲供）","1.混凝土强度等级：混凝土强度等级：采用商品混凝土，混凝土由发包人供应。\n2.混凝土浇筑机械及方式：浇筑机械、施工方案由承包人自行确定；泵车、天泵费用由发包人承担；发包人负责提供临时便道及作业平台，承包人负责施工期间场内运输道路、浇筑作业场地修整，相关费用综合考虑在报价中。\n3.养护及温控措施：混凝土浇筑完成后及时覆盖保湿养护，养护时间满足现行规范要求；相关费用由承包人综合考虑在报价中。\n4.模板工程：模板费用单独列项计价。\n5.施工质量要求：施工工艺、质量标准均满足设计图纸及现行施工技术规范、质量验收标准。","m3",27.2,120,3264,null,null,"损耗4%"]
[18,"防震挡块混凝土浇筑（混凝土甲供）","1.混凝土强度等级：混凝土强度等级：采用商品混凝土，混凝土由发包人供应。\n2.混凝土浇筑机械及方式：浇筑机械、施工方案由承包人自行确定；泵车、天泵费用由发包人承担；发包人负责提供临时便道及作业平台，承包人负责施工期间场内运输道路、浇筑作业场地修整，相关费用综合考虑在报价中。\n3.养护及温控措施：混凝土浇筑完成后及时覆盖保湿养护，养护时间满足现行规范要求；相关费用由承包人综合考虑在报价中。\n4.模板工程：模板费用单独列项计价。\n5.施工质量要求：施工工艺、质量标准均满足设计图纸及现行施工技术规范、质量验收标准。","m3",1.22,200,244,null,null,"损耗4%"]
[19,"支座垫石混凝土浇筑（混凝土甲供）","1.混凝土强度等级：混凝土强度等级：采用商品混凝土，混凝土由发包人供应。\n2.混凝土浇筑机械及方式：浇筑机械、施工方案由承包人自行确定；泵车、天泵费用由发包人承担；发包人负责提供临时便道及作业平台，承包人负责施工期间场内运输道路、浇筑作业场地修整，相关费用综合考虑在报价中。\n3.养护及温控措施：混凝土浇筑完成后及时覆盖保湿养护，养护时间满足现行规范要求；相关费用由承包人综合考虑在报价中。\n4.模板工程：模板费用单独列项计价。\n5.施工质量要求：施工工艺、质量标准均满足设计图纸及现行施工技术规范、质量验收标准。","m3",2,200,400,null,null,"损耗4%"]
[20,"聚丙烯纤维混凝土混凝土浇筑（混凝土甲供）","1.混凝土强度等级：混凝土强度等级：采用商品混凝土，混凝土由发包人供应。\n2.混凝土浇筑机械及方式：浇筑机械、施工方案由承包人自行确定；泵车、天泵费用由发包人承担；发包人负责提供临时便道及作业平台，承包人负责施工期间场内运输道路、浇筑作业场地修整，相关费用综合考虑在报价中。\n3.养护及温控措施：混凝土浇筑完成后及时覆盖保湿养护，养护时间满足现行规范要求；相关费用由承包人综合考虑在报价中。\n4.模板工程：模板费用单独列项计价。\n5.施工质量要求：施工工艺、质量标准均满足设计图纸及现行施工技术规范、质量验收标准。","m3",2.6,200,520,null,null,"损耗4%"]
[21,"梁端封锚混凝土浇筑（混凝土甲供）","1.混凝土强度等级：混凝土强度等级：采用商品混凝土，混凝土由发包人供应。\n2.混凝土浇筑机械及方式：浇筑机械、施工方案由承包人自行确定；泵车、天泵费用由发包人承担；发包人负责提供临时便道及作业平台，承包人负责施工期间场内运输道路、浇筑作业场地修整，相关费用综合考虑在报价中。\n3.养护及温控措施：混凝土浇筑完成后及时覆盖保湿养护，养护时间满足现行规范要求；相关费用由承包人综合考虑在报价中。\n4.模板工程：模板费用单独列项计价。\n5.施工质量要求：施工工艺、质量标准均满足设计图纸及现行施工技术规范、质量验收标准。","m3",1.3,200,260,null,null,"损耗4%"]
[22,"钢绞线 φs15.2（3号桥）（钢绞线、永久锚具甲供）","1.钢绞线及锚夹具、垫板卸车搬运至甲方指定地点后覆盖、制作安装预应力钢绞线：\n2.工作内容：包含搭拆临时脚手架及操作平台；材料卸车、场内材料倒运；钢绞线制束、穿束，安锚具（锚具甲供、工作锚承包人自行考虑）、锚垫板等；张拉、切割，砼凿毛、清洗孔道，压浆，封锚头，材料运输；按设计图纸为完成本项工作的全部工作内容。\n3、压浆规格：42.5 级以上的低碱普通硅酸盐水泥，压浆参数详见公路桥涵施工技术规范                                                        4、计量规则：在设计数量范围内，以现场完成的钢绞线重量计算，钢绞线长度按两端锚具间的理论长度计算，锚具外的工作长度不予计量；锚具、管道、锚板及联结钢板等不单独计量；除甲供材外，其他附属材料均自行购买，已包含在此单价中。                              \n5.未尽事宜满足设计及现行技术、质量验收规范要求","t",14.253,1800,25655.4]
[23,"波纹管 内径80mm","1.安装部位(室内、外)：室外\n2.材质：波纹管\n3.型号、规格：DN80\n4.连接方式：详设计施工图\n5.压力试验及冲洗：满足设计及规范要求  \n6.管道标识：满足设计及规范要求\n7.其它：未尽事宜满足设计及现行技术、质量验收规范要求","m",711.1,9.5,6755.45]
[24,"波纹管 内径70mm","1.安装部位(室内、外)：室外\n2.材质：波纹管\n3.型号、规格：DN70\n4.连接方式：详设计施工图\n5.压力试验及冲洗：满足设计及规范要求  \n6.管道标识：满足设计及规范要求\n7.其它：未尽事宜满足设计及现行技术、质量验收规范要求","m",1066.2,9,9595.8]
[25,"钢筋制作、运输、安装（钢筋甲供）","1.钢筋种类、规格：种类及规格综合（钢筋甲供）\n2.钢筋连接方式：各种连接方式承包人综合考虑在报价中\n3.其他：甲方将钢筋原材运至现场指定点后，卸车、堆放、储存、场内转运、保护、及除锈等工作由承包人实施；钢筋吊运、安装、固定、保护层垫块安装以及其他相关附属及所有工作均包含在综合单价中，不另行计算\n4.计量规则：依据图纸所示，按钢筋设计重量计算，不计搭接、损耗、固定钢筋的材料、定位架立钢筋、吊装钢筋、钢板、铁丝焊条等，除甲供材外，其他附属材料均自行购买，已包含在此单价中\n5.包含完成该工作所需的人工费、材料费（含辅材）、机械费、机械进出场费、材料场内外运输、二次或多次转运费均已包含在单价内；\n6.钢筋无粘接处涂环氧酚漆二层、内包玻璃丝布二层、外缠聚乙烯胶带二层；环氧酚漆颜色、粘度、附着力、韧性等执行相关国家标准;玻璃丝布应具有良好的防腐性能,满足行业相关要求;聚乙烯胶带各项性能指标应完全符合《钢制管道聚乙烯胶粘带防腐层技术标准》(SY/T0414-2017)的规定。\n7.拉杆钢筋应做防腐处理，费用承包人综合考虑在报价中\n8.未尽事宜满足设计及现行技术、质量验收规范要求","t",135.14,1500,202710,null,null,"损耗7%"]
[26,"700*640*40mm镀锌钢板","1.钢材品种、规格：700*640*40mm镀锌钢板\n2.要求：梁底预埋钢板进行热浸锌处理将钢板浸入600°C左右高温融化的锌液中，使钢板表面附着锌层，锌层厚度不得小于65um\n3.防火要求：防火要求及做法详见设计施工图。\n4.其它：未尽事宜满足设计及现行技术、质量验收规范要求","t",3.376,8000,27008]
[27,"板式橡胶支座 GBZJ350×450×99（支座甲供） ","1.材质：板式橡胶支座（支座甲供） \n2.规格、型号：GBZJ350×450×99\n3.其它：未尽事宜满足设计及现行技术、质量验收规范要求","块",24,120,2880]
[28,"桥梁伸缩缝（伸缩缝甲供）","1.材料品种：伸缩缝 （伸缩缝甲供）\n2.规格、型号：D80型 \n3.混凝土种类、强度等级：聚丙烯纤维混凝土 C50（清单另列）\n4.含伸缩缝安装、调整、固定、二转及多次转运、预埋钢筋梳理、原有混凝土剔除、基层清理、建渣外弃等\n5.其它：未尽事宜满足设计及现行技术、质量验收规范要求","m",17.2,200,3440]
[29,"φ110UPVC泄水管","1.材料品种：UPVC泄水管 \n2.管径：φ110\n3.其它：未尽事宜满足设计及现行技术、质量验收规范要求","m",12.6,15,189]
["四","模板、脚手架工程"]
[30,"承台垫层、桥头搭板垫层、桥头搭板模板","1.部位：垫层\n2.支模高度：综合\n3.模板类型：本项目承包人应根据施工经验，现场实际情况和企业自身情况综合考虑综合单价，不论采用何种材质规格及厚度的模板均不做调整，且必须达到相关要求\n4.支架材料：钢管、木支架综合，且包含使用的对拉螺杆、止水螺杆等一切费用\n5.其它：未尽事宜满足设计及现行技术、质量验收规范要求","m2",{"$f":"16.5+15.12","v":31.62},50,{"$f":"E38*F38","v":1581}]
[31,"承台模板安拆","1.部位：承台\n2.支模高度：综合\n3.模板类型：本项目承包人应根据施工经验，现场实际情况和企业自身情况综合考虑综合单价，不论采用何种材质规格及厚度的模板均不做调整，且必须达到相关要求\n4.支架材料：钢管、木支架综合，且包含使用的对拉螺杆、止水螺杆等一切费用\n5.其它：未尽事宜满足设计及现行技术、质量验收规范要求","m2",92,60,5520]
[32,"台帽及台身背墙模板安拆","1.部位：台帽及台身背墙\n2.支模高度：综合\n3.模板类型：本项目承包人应根据施工经验，现场实际情况和企业自身情况综合考虑综合单价，不论采用何种材质规格及厚度的模板均不做调整，且必须达到相关要求\n4.支架材料：钢管、木支架综合，且包含使用的对拉螺杆、止水螺杆等一切费用\n5.其它：未尽事宜满足设计及现行技术、质量验收规范要求","m2",243.75,70,17062.5]
[33,"盖梁模板安拆","1.部位：盖梁\n2.支模高度：综合\n3.模板类型：本项目承包人应根据施工经验，现场实际情况和企业自身情况综合考虑综合单价，不论采用何种材质规格及厚度的模板均不做调整，且必须达到相关要求\n4.支架材料：钢管、木支架综合，且包含使用的对拉螺杆、止水螺杆等一切费用\n5.其它：未尽事宜满足设计及现行技术、质量验收规范要求","m2",69,104,7176]
[34,"墩身模板安拆","1.部位：墩身\n2.支模高度：综合\n3.模板类型：本项目承包人应根据施工经验，现场实际情况和企业自身情况综合考虑综合单价，不论采用何种材质规格及厚度的模板均不做调整，且必须达到相关要求\n4.支架材料：钢管、木支架综合，且包含使用的对拉螺杆、止水螺杆等一切费用\n5.包含花瓶墩、墩身模板材料及模板安拆费\n6.其它：未尽事宜满足设计及现行技术、质量验收规范要求","m2",148.4,150,22260]
[35,"上部结构现浇混凝土模板","1.部位：防震挡块、支座垫石、翼板、横隔梁、桥面铺装、护栏基座、梁端封锚模板\n2.支模高度：综合\n3.模板类型：本项目承包人应根据施工经验，现场实际情况和企业自身情况综合考虑综合单价，不论采用何种材质规格及厚度的模板均不做调整，且必须达到相关要求\n4.支架材料：钢管、木支架综合，且包含使用的对拉螺杆、止水螺杆等一切费用\n5.模板的制作、安装、拆除、清理、打磨、定位固定、支撑体系搭设（如采用吊模）及施工全过程的模板维护、保养等全部工作内容，均由承包人自行统筹考虑，相关人工、材料、机械及所有相关费用均综合包含在报价中，不另行计取；模板的类型、规格、材质及搭设方案由承包人结合施工实际自行确定，确保满足设计及现行施工技术、质量验收规范要求，保证板结构几何尺寸、平整度及外观质量达标。\n6.其它：未尽事宜满足设计及现行技术、质量验收规范要求\n7.计算规则：按与混凝土接触面积计算","m2",{"$f":"27.98+21.21+116.8+206.64","v":372.63},60,22357.8]
[36,"墩身支架 满堂式钢管脚手架","1．名称：满堂式钢管支架 \n2．搭设高度及方式：承包人自行综合考虑\n3.本项目承包人应根据施工经验，现场实际情况和企业自身情况综合报价，包含搭设脚手架需要的所有材料、人工、机械、辅助措施等，需满足监理、业主及相关规范要求，搭设前应编制专项方案并通过监理和业主审核认可后施工\n4.未尽事宜满足设计及现行技术、质量验收规范要求\n5.脚手架地面混凝土硬化费用另计\n6.工作平台搭设、租赁费用由报价人综合考虑在投标报价中，梯笼以该项以立方计算\n7.计算规则：以现场实际搭设满堂脚手架扣除结构物按立方计算，工程量不得大于经发包人审批的施工方案工程量。","m3",{"$f":"(84-20)*(9.5+8.6)","v":1158.4},22,25484.8]
[37,"脚手架地面混凝土硬化（商品混凝土甲供）","1.名称：脚手架地面混凝土硬化（混凝土甲供）\n2.施工内容：包含平整场地、碾压夯实、混凝土浇筑、表面拉毛 / 压纹、切缝伸缩缝、养护及成品保护等全部工序\n3.混凝土浇筑机械及方式：浇筑机械、施工方案由承包人自行确定；泵车、天泵费用由发包人承担；发包人负责提供临时便道及作业平台，承包人负责施工期间场内运输道路、浇筑作业场地修整，相关费用综合考虑在报价中。\n4.厚度：现场发包人确认\n5.未尽事宜满足设计及现行技术、质量验收规范要求","m3",{"v":50,"d":"50.00"},60,3000,null,null,"损耗4%"]
[38,"双排脚手架","1．名称：双排脚手架 \n2．搭设高度及方式：承包人自行综合考虑\n3.本项目承包人应根据施工经验，现场实际情况和企业自身情况综合报价，包含搭设脚手架需要的所有材料、人工、机械、辅助措施等，需满足监理、业主及相关规范要求，搭设前应编制专项方案并通过监理和业主审核认可后施工\n4.脚手架地面混凝土硬化费用另计\n5.未尽事宜满足设计及现行技术、质量验收规范要求\n6.计算规则：按所服务对象的垂直投影面积计算。","m2",{"$f":"21*5*2","v":210},15,3150]
[null,"合计",{"$nulls":4},{"$f":"SUM(G5:G46)","v":888445.85}]

{"sheet":"4号桥工程","index":4,"n_rows":48,"n_cols":10,"rows_kept":48,"merged":[[0,0,0,9],[1,0,3,0],[1,1,3,1],[1,2,3,2],[1,3,3,3],[1,4,3,4],[1,5,1,6],[1,7,1,8],[1,9,3,9],[2,5,3,5],[2,6,3,6],[2,7,3,7],[2,8,3,8],[4,1,4,2],[7,1,7,2],[19,1,19,2],[37,1,37,2]]}
["4号桥梁工程劳务施工清单与报价表"]
["序号","项目名称","项目特征描述","单位","工程量","采购最高限价（含税）",null,"投标报价",null,"备注"]
[{"$nulls":5},"全费用综合单价（元）","合价（元）","含税全费用单价（元）","含税合价（元）"]
[]
["一","土石方工程"]
[1,"场内土石方挖运填\n","1.完成项目范围内桥梁工程土石方开挖、转运、回填工程，工作内容包括但不限于以下工程内容：（1）土石方开挖、石方破碎大改小、土石方转运（含红线范围内取土回填转运，运距综合考虑）、回填等；开挖的各类土、石综合（详见地勘），现场建(废)渣等综合考虑；施工区域换填、回填桥梁作业区域土石方。\n2.填方来源：来源为现场红线内原有土石方，场内综合运距1-2km。\n3.开挖、回填标高：挖填标高均应满足设计要求，误差控制在设计标高±5cm内。\n4.开挖方式、场内运输方式：承包人自行确定。\n5.开挖方案和边坡施工防护及对管线、构筑物、建筑物等采取的保护措施须经业主批准，满足安全、文明施工相关规范及规定，包含在投标报价中。\n6.其他：临边及孔洞的防护、进出车辆冲洗管理、场内外路面清洗管理、投标单位自己操作人员的劳保防护用品、临时用水用电（含水电费用）、必要安全措施等由投标单位承担；现场出现超挖和欠挖现象，造成的损失由投标单位承担；施工内容涉及的检测（复检）费用和送样检测等费用由投标单位承担；机械进、出场费用（含多次进出场）由投标单位综合考虑，包含在投标报价中。                                                    \n7.其余要求：施工过程中应满足城管和环保要求。为保证施工工期并达到环保要求，夜间施工产生的措施费及赶工费等费用包含在综合单价中，履约过程中不接受调价。\n8.工程量以现场收方为准。","m3",220.5,18,{"$f":"E6*F6","v":3969}]
[2,"土石方开挖、外弃","1.完成项目范围内桥梁工程土石方开挖外弃工程，工作内容包括但不限于以下工程内容：（1）土石方开挖、石方破碎大改小、土石方转运外弃；（2）土石围堰开挖外弃；（3）桥梁基础开挖外弃；开挖的各类土、石综合（详见地勘），现场建(废)渣等综合考虑；\n2.外弃内容：开挖的各类土、石(含淤泥)综合，现场建(废)渣等综合考虑 \n3.弃土外运权责：发包人不指定弃土场，由承包人自行踏勘现场、选定合规弃土场、确定运输路线与运距；弃土外运涉及的运输、装卸、弃土场租赁 / 征用、合规手续办理、环保水保、防护等全部费用，均包含在综合单价内，发包人不另行支付。承包人承担弃土全流程合规责任，因违规产生的行政处罚、第三方索赔及全部风险损失，均由承包人全额承担，合同价款不作调整。\n4.开挖深度：开挖标高应满足设计要求，误差控制在设计标高±5cm内。\n5.开挖方式、场内运输方式：承包人自行确定。\n6.开挖方案和边坡施工防护及对管线、构筑物、建筑物等采取的保护措施须经业主批准，满足安全、文明施工相关规范及规定，包含在投标报价中。\n10.其他：临边及孔洞的防护、进出车辆冲洗管理、场内外路面清洗管理、投标单位自己操作人员的劳保防护用品、临时用水用电（含水电费用）、必要安全措施等由投标单位承担；现场出现超挖和欠挖现象，造成的损失由投标单位承担；施工内容的检测（复检）费用和送样检测等费用由投标单位承担；机械进、出场费用（含多次进出场）由投标单位综合考虑，包含在投标报价中。                                                    \n11.其余要求：施工过程中应满足城管和环保要求。为保证施工工期并达到环保要求，夜间施工产生的措施费及赶工费等费用包含在综合单价中。\n12.工程量以现场收方为准","m3",{"$f":"880.1-220.5+3000","v":3659.6},25,91490]
["二","下部结构 "]
[3,"承台垫层、桥头搭板垫层、桥头搭板混凝土浇筑（混凝土甲供）","1.混凝土强度等级：混凝土强度等级：采用商品混凝土，混凝土由发包人供应。\n2.混凝土浇筑机械及方式：浇筑机械、施工方案由承包人自行确定；泵车、天泵费用由发包人承担；发包人负责提供临时便道及作业平台，承包人负责施工期间场内运输道路、浇筑作业场地修整，相关费用综合考虑在报价中。\n3.垫层厚度：综合考虑；\n4.模板工程：模板费用单独列项计价。\n5.施工质量要求：施工工艺、质量标准均满足设计图纸及现行施工技术规范、质量验收标准。","m3",{"$f":"30.8+3.4+17.9+31.3","v":83.4},80,6672,null,null,"损耗4%"]
[4,"承台混凝土浇筑 （混凝土甲供）","1.混凝土强度等级：混凝土强度等级：采用商品混凝土，混凝土由发包人供应。\n2.混凝土浇筑机械及方式：浇筑机械、施工方案由承包人自行确定；泵车、天泵费用由发包人承担；发包人负责提供临时便道及作业平台，承包人负责施工期间场内运输道路、浇筑作业场地修整，相关费用综合考虑在报价中。\n3.养护及温控措施：混凝土浇筑完成后及时覆盖保湿养护，养护时间满足现行规范要求；大体积混凝土需采取测温、保温、降温等防裂措施，相关费用由承包人综合考虑在报价中。\n4.模板工程：模板费用单独列项计价。\n5.施工质量要求：施工工艺、质量标准均满足设计图纸及现行施工技术规范、质量验收标准。","m3",{"$f":"42.9+308","v":350.9},65,22808.5,null,null,"损耗4%"]
[5,"台身及侧墙片石混凝土浇筑（混凝土甲供、片石乙供）","1.混凝土强度等级：片石商品砼（混凝土甲供、片石乙供）\n2.混凝土浇筑机械及方式：浇筑机械、施工方案由承包人自行确定；泵车、天泵费用由发包人承担；发包人负责提供临时便道及作业平台，承包人负责施工期间场内运输道路、浇筑作业场地修整，相关费用综合考虑在报价中。\n3.片石由承包人提供，片石量不大于结构体积的 20%，厚度150～300mm，净距 ≥150mm，不得接触钢筋与预埋件，抗压强度≥30MPa，且不低于混凝土强度等级。\n4.养护及温控措施：混凝土浇筑完成后及时覆盖保湿养护，养护时间满足现行规范要求；大体积混凝土需采取测温、保温、降温等防裂措施，相关费用由承包人综合考虑在报价中。\n5.模板工程：模板费用单独列项计价。\n6.施工质量要求：施工工艺、质量标准均满足设计图纸及现行施工技术规范、质量验收标准。","m3",255.1,115,29336.5,null,null,"损耗4%"]
[6,"台帽混凝土浇筑（混凝土甲供）","1.混凝土强度等级：混凝土强度等级：采用商品混凝土，混凝土由发包人供应。\n2.混凝土浇筑机械及方式：浇筑机械、施工方案由承包人自行确定；泵车、天泵费用由发包人承担；发包人负责提供临时便道及作业平台，承包人负责施工期间场内运输道路、浇筑作业场地修整，相关费用综合考虑在报价中。\n3.养护及温控措施：混凝土浇筑完成后及时覆盖保湿养护，养护时间满足现行规范要求；大体积混凝土需采取测温、保温、降温等防裂措施，相关费用由承包人综合考虑在报价中。\n4.模板工程：模板费用单独列项计价。\n5.施工质量要求：施工工艺、质量标准均满足设计图纸及现行施工技术规范、质量验收标准。","m3",56.6,70,3962,null,null,"损耗4%"]
[7,"台身及侧墙混凝土浇筑（混凝土甲供）","1.混凝土强度等级：混凝土强度等级：采用商品混凝土，混凝土由发包人供应。\n2.混凝土浇筑机械及方式：浇筑机械、施工方案由承包人自行确定；泵车、天泵费用由发包人承担；发包人负责提供临时便道及作业平台，承包人负责施工期间场内运输道路、浇筑作业场地修整，相关费用综合考虑在报价中。\n3.厚度：综合考虑；\n4.模板工程：模板费用单独列项计价。\n5.施工质量要求：施工工艺、质量标准均满足设计图纸及现行施工技术规范、质量验收标准。","m3",13.5,65,877.5,null,null,"损耗4%"]
[8,"墩身混凝土浇筑（混凝土甲供）","1.混凝土强度等级：混凝土强度等级：采用商品混凝土，混凝土由发包人供应。\n2.混凝土浇筑机械及方式：浇筑机械、施工方案由承包人自行确定；泵车、天泵费用由发包人承担；发包人负责提供临时便道及作业平台，承包人负责施工期间场内运输道路、浇筑作业场地修整，相关费用综合考虑在报价中。\n3.养护及温控措施：混凝土浇筑完成后及时覆盖保湿养护，养护时间满足现行规范要求；大体积混凝土需采取测温、保温、降温等防裂措施，相关费用由承包人综合考虑在报价中。\n4.模板工程单独计量计价\n5.施工质量要求：施工工艺、质量标准均满足设计图纸及现行施工技术规范、质量验收标准。","m3",43.9,70,3073,null,null,"损耗4%"]
[9,"盖梁混凝土浇筑（混凝土甲供）","1.混凝土强度等级：混凝土强度等级：采用商品混凝土，混凝土由发包人供应。\n2.混凝土浇筑机械及方式：浇筑机械、施工方案由承包人自行确定；泵车、天泵费用由发包人承担；发包人负责提供临时便道及作业平台，承包人负责施工期间场内运输道路、浇筑作业场地修整，相关费用综合考虑在报价中。\n3.养护及温控措施：混凝土浇筑完成后及时覆盖保湿养护，养护时间满足现行规范要求；大体积混凝土需采取测温、保温、降温等防裂措施，相关费用由承包人综合考虑在报价中。\n4.模板工程：模板费用单独列项计价。\n5.施工质量要求：施工工艺、质量标准均满足设计图纸及现行施工技术规范、质量验收标准。","m3",22.9,70,1603,null,null,"损耗4%"]
[10,"砂砾垫层","1.垫层材料：砂砾垫层\n2.厚度：10cm\n3.位置：桥台锥坡基层\n4.其他：满足设计及现行施工技术、质量验收规范要求","m3",17,160,2720]
[11,"锥坡 人工修坡","1.锥坡清理：浆砌片石施工前，按设计坡比、坡度及标高对锥坡坡面进行人工修整、清理，清除坡面浮土、杂物、松散土体及危石，修整后坡面平整、顺直、密实，无凹凸、松动现象，坡比符合设计要求\n2.做法：满足设计及现行施工技术、质量验收规范要求\n3.计算规则：以实际修坡面积计算","m2",300,4,1200]
[12,"锥坡 M7.5浆砌片石","1.部位：桥台锥坡 \n2.材料品种、规格：片石 \n3.砂浆强度等级 ：M7.5 湿拌砂浆\n4.其它：未尽事宜满足设计及现行技术、质量验收规范要求","m3",79.6,430,34228]
[13,"钢筋制作、运输、安装（钢筋甲供）","1.钢筋种类、规格：种类及规格综合（钢筋甲供）\n2.钢筋连接方式：各种连接方式承包人综合考虑在报价中\n3.其他：甲方将钢筋原材运至现场指定点后，卸车、堆放、储存、场内转运、保护、及除锈等工作由承包人实施；钢筋吊运、安装、固定、保护层垫块安装以及其他相关附属及所有工作均包含在综合单价中，不另行计算\n4.计量规则：依据图纸所示，按钢筋设计重量计算，不计搭接、损耗、固定钢筋的材料、定位架立钢筋、吊装钢筋、钢板、铁丝焊条等，除甲供材外，其他附属材料均自行购买，已包含在此单价中\n5.包含完成该工作所需的人工费、材料费（含辅材）、机械费、机械进出场费、材料场内外运输、二次或多次转运费均已包含在单价内；\n6.钢筋无粘接处涂环氧酚漆二层、内包玻璃丝布二层、外缠聚乙烯胶带二层；环氧酚漆颜色、粘度、附着力、韧性等执行相关国家标准;玻璃丝布应具有良好的防腐性能,满足行业相关要求;聚乙烯胶带各项性能指标应完全符合《钢制管道聚乙烯胶粘带防腐层技术标准》(SY/T0414-2017)的规定。\n7.拉杆钢筋应做防腐处理，费用承包人综合考虑在报价中\n8.未尽事宜满足设计及现行技术、质量验收规范要求","t",{"$f":"0.09+7.573+8.868+33.355","v":49.886},1500,74829,null,null,"损耗7%"]
["三","上部结构"]
[14,"预制T梁、翼板混凝土制安（混凝土甲供）","1.部位：T梁、翼板（含模板）\n2.规格型号：C50钢筋混凝土预制梁（混凝土甲供）\n3.工作内容：工作内容：包括但不限于搭设工作平台、脚手架及模板材料、模板制作安装、安、拆、修、涂脱模剂、搬运、堆放，混凝土灌注、养护、成品梁移运存放，预留预埋件等全部工作内容；梁体运输、梁体安装、梁体就位，过跨、T梁临时固定牢固及其他附属工作；\n4.计量规则：依据图纸所示，以实际完成并经双方验收合格的混凝土工程量为准；除甲供材外：其他附属材料均自行购买，已包含在此单价中\n5.吊装及安装方式、运输方式：承包人自行考虑\n6.预制梁达到清水混凝土效果，如达不到效果自行处理，费用自行承担。7.预制、堆放场地由甲方指定，预制场辅材、钢模板、设备、由承包人负责\n8.预制梁与背墙之间用聚苯乙烯泡沫板填塞紧密，费用已包含在投标报价中\n9.T梁与桥台接触处顶部设置2mm隔离层，隔离层采用刷两遍沥青,铺一层塑料薄膜。\n10.T梁吊运采用兜托梁底起吊法，不设吊环，预制梁采用钢丝绳套箍吊装，吊点应设在梁端隔梁中心线内侧300mm的范围内，此处翼板上注意预留吊洞。\n11.内外侧边梁翼缘板沿桥纵向设滴水槽，滴水槽可用木条形成。\n12.未尽事宜满足设计及现行技术、质量验收规范要求","m3",259.6,790,{"$f":"E21*F21","v":205084},null,null,"损耗4%"]
[15,"翼板混凝土浇筑（混凝土甲供）","1.混凝土强度等级：混凝土强度等级：采用商品混凝土，混凝土由发包人供应。\n2.混凝土浇筑机械及方式：浇筑机械、施工方案由承包人自行确定；泵车、天泵费用由发包人承担；发包人负责提供临时便道及作业平台，承包人负责施工期间场内运输道路、浇筑作业场地修整，相关费用综合考虑在报价中。\n3.养护及温控措施：混凝土浇筑完成后及时覆盖保湿养护，养护时间满足现行规范要求；相关费用由承包人综合考虑在报价中。\n4.模板工程：模板费用单独列项计价。\n5.现浇与预制混凝土交界处凿毛处理保证湿接缝处新、老混凝土连接施工质量；相关费用由承包人综合考虑在报价中。\n6.施工质量要求：施工工艺、质量标准均满足设计图纸及现行施工技术规范、质量验收标准。","m3",16.8,150,2520,null,null,"损耗4%"]
[16,"横隔梁混凝土浇筑（混凝土甲供）","1.混凝土强度等级：混凝土强度等级：采用商品混凝土，混凝土由发包人供应。\n2.混凝土浇筑机械及方式：浇筑机械、施工方案由承包人自行确定；泵车、天泵费用由发包人承担；发包人负责提供临时便道及作业平台，承包人负责施工期间场内运输道路、浇筑作业场地修整，相关费用综合考虑在报价中。\n3.养护及温控措施：混凝土浇筑完成后及时覆盖保湿养护，养护时间满足现行规范要求；相关费用由承包人综合考虑在报价中。\n4.模板工程：模板费用单独列项计价。\n5.施工质量要求：施工工艺、质量标准均满足设计图纸及现行施工技术规范、质量验收标准。","m3",12,150,1800,null,null,"损耗4%"]
[17,"桥面铺装混凝土浇筑（混凝土甲供）","1.混凝土强度等级：混凝土强度等级：采用商品混凝土，混凝土由发包人供应。\n2.混凝土浇筑机械及方式：浇筑机械、施工方案由承包人自行确定；泵车、天泵费用由发包人承担；发包人负责提供临时便道及作业平台，承包人负责施工期间场内运输道路、浇筑作业场地修整，相关费用综合考虑在报价中。\n3.养护及温控措施：混凝土浇筑完成后及时覆盖保湿养护，养护时间满足现行规范要求；相关费用由承包人综合考虑在报价中。\n4.模板工程：模板费用单独列项计价。\n5.在浇筑桥面现浇层混凝土前，必须保证预制梁顶面混凝土拉毛并清洗干净；相关费用由承包人综合考虑在报价中。\n5.施工质量要求：施工工艺、质量标准均满足设计图纸及现行施工技术规范、质量验收标准。","m3",53.89,100,5389,null,null,"损耗4%"]
[18,"护栏基座混凝土浇筑（混凝土甲供）","1.混凝土强度等级：混凝土强度等级：采用商品混凝土，混凝土由发包人供应。\n2.混凝土浇筑机械及方式：浇筑机械、施工方案由承包人自行确定；泵车、天泵费用由发包人承担；发包人负责提供临时便道及作业平台，承包人负责施工期间场内运输道路、浇筑作业场地修整，相关费用综合考虑在报价中。\n3.养护及温控措施：混凝土浇筑完成后及时覆盖保湿养护，养护时间满足现行规范要求；相关费用由承包人综合考虑在报价中。\n4.模板工程：模板费用单独列项计价。\n5.施工质量要求：施工工艺、质量标准均满足设计图纸及现行施工技术规范、质量验收标准。","m3",20.2,120,2424,null,null,"损耗4%"]
[19,"防震挡块混凝土浇筑（混凝土甲供）","1.混凝土强度等级：混凝土强度等级：采用商品混凝土，混凝土由发包人供应。\n2.混凝土浇筑机械及方式：浇筑机械、施工方案由承包人自行确定；泵车、天泵费用由发包人承担；发包人负责提供临时便道及作业平台，承包人负责施工期间场内运输道路、浇筑作业场地修整，相关费用综合考虑在报价中。\n3.养护及温控措施：混凝土浇筑完成后及时覆盖保湿养护，养护时间满足现行规范要求；相关费用由承包人综合考虑在报价中。\n4.模板工程：模板费用单独列项计价。\n5.施工质量要求：施工工艺、质量标准均满足设计图纸及现行施工技术规范、质量验收标准。","m3",0.94,200,188,null,null,"损耗4%"]
[20,"支座垫石混凝土浇筑（混凝土甲供）","1.混凝土强度等级：混凝土强度等级：采用商品混凝土，混凝土由发包人供应。\n2.混凝土浇筑机械及方式：浇筑机械、施工方案由承包人自行确定；泵车、天泵费用由发包人承担；发包人负责提供临时便道及作业平台，承包人负责施工期间场内运输道路、浇筑作业场地修整，相关费用综合考虑在报价中。\n3.养护及温控措施：混凝土浇筑完成后及时覆盖保湿养护，养护时间满足现行规范要求；相关费用由承包人综合考虑在报价中。\n4.模板工程：模板费用单独列项计价。\n5.施工质量要求：施工工艺、质量标准均满足设计图纸及现行施工技术规范、质量验收标准。","m3",1.3,200,260,null,null,"损耗4%"]
[21,"聚丙烯纤维混凝土混凝土浇筑（混凝土甲供）","1.混凝土强度等级：混凝土强度等级：采用商品混凝土，混凝土由发包人供应。\n2.混凝土浇筑机械及方式：浇筑机械、施工方案由承包人自行确定；泵车、天泵费用由发包人承担；发包人负责提供临时便道及作业平台，承包人负责施工期间场内运输道路、浇筑作业场地修整，相关费用综合考虑在报价中。\n3.养护及温控措施：混凝土浇筑完成后及时覆盖保湿养护，养护时间满足现行规范要求；相关费用由承包人综合考虑在报价中。\n4.模板工程：模板费用单独列项计价。\n5.施工质量要求：施工工艺、质量标准均满足设计图纸及现行施工技术规范、质量验收标准。","m3",2.6,200,520,null,null,"损耗4%"]
[22,"梁端封锚混凝土浇筑（混凝土甲供）","1.混凝土强度等级：混凝土强度等级：采用商品混凝土，混凝土由发包人供应。\n2.混凝土浇筑机械及方式：浇筑机械、施工方案由承包人自行确定；泵车、天泵费用由发包人承担；发包人负责提供临时便道及作业平台，承包人负责施工期间场内运输道路、浇筑作业场地修整，相关费用综合考虑在报价中。\n3.养护及温控措施：混凝土浇筑完成后及时覆盖保湿养护，养护时间满足现行规范要求；相关费用由承包人综合考虑在报价中。\n4.模板工程：模板费用单独列项计价。\n5.施工质量要求：施工工艺、质量标准均满足设计图纸及现行施工技术规范、质量验收标准。","m3",1.3,200,260,null,null,"损耗4%"]
[23,"钢绞线 φs15.2（4号桥）（钢绞线、永久锚具甲供）","1.钢绞线及锚夹具、垫板卸车搬运至甲方指定地点后覆盖、制作安装预应力钢绞线：\n2.工作内容：包含搭拆临时脚手架及操作平台；材料卸车、场内材料倒运；钢绞线制束、穿束，安锚具（锚具甲供、工作锚承包人自行考虑）、锚垫板等；张拉、切割，砼凿毛、清洗孔道，压浆，封锚头，材料运输；按设计图纸为完成本项工作的全部工作内容。\n3、压浆规格：42.5 级以上的低碱普通硅酸盐水泥，压浆参数详见公路桥涵施工技术规范                                                        4、计量规则：在设计数量范围内，以现场完成的钢绞线重量计算，钢绞线长度按两端锚具间的理论长度计算，锚具外的工作长度不予计量；锚具、管道、锚板及联结钢板等不单独计量；除甲供材外，其他附属材料均自行购买，已包含在此单价中。                              \n5.未尽事宜满足设计及现行技术、质量验收规范要求","t",9.502,1800,17103.6]
[24,"波纹管 内径80mm","1.安装部位(室内、外)：室外\n2.材质：波纹管\n3.型号、规格：DN80\n4.连接方式：详设计施工图\n5.压力试验及冲洗：满足设计及规范要求  \n6.管道标识：满足设计及规范要求\n7.其它：未尽事宜满足设计及现行技术、质量验收规范要求","m",474.1,9.5,4503.95]
[25,"波纹管 内径70mm","1.安装部位(室内、外)：室外\n2.材质：波纹管\n3.型号、规格：DN70\n4.连接方式：详设计施工图\n5.压力试验及冲洗：满足设计及规范要求  \n6.管道标识：满足设计及规范要求\n7.其它：未尽事宜满足设计及现行技术、质量验收规范要求","m",710.8,9,6397.2]
[26,"钢筋制作、运输、安装（钢筋甲供）","1.钢筋种类、规格：种类及规格综合（钢筋甲供）\n2.钢筋连接方式：各种连接方式承包人综合考虑在报价中\n3.其他：甲方将钢筋原材运至现场指定点后，卸车、堆放、储存、场内转运、保护、及除锈等工作由承包人实施；钢筋吊运、安装、固定、保护层垫块安装以及其他相关附属及所有工作均包含在综合单价中，不另行计算\n4.计量规则：依据图纸所示，按钢筋设计重量计算，不计搭接、损耗、固定钢筋的材料、定位架立钢筋、吊装钢筋、钢板、铁丝焊条等，除甲供材外，其他附属材料均自行购买，已包含在此单价中\n5.包含完成该工作所需的人工费、材料费（含辅材）、机械费、机械进出场费、材料场内外运输、二次或多次转运费均已包含在单价内；\n6.钢筋无粘接处涂环氧酚漆二层、内包玻璃丝布二层、外缠聚乙烯胶带二层；环氧酚漆颜色、粘度、附着力、韧性等执行相关国家标准;玻璃丝布应具有良好的防腐性能,满足行业相关要求;聚乙烯胶带各项性能指标应完全符合《钢制管道聚乙烯胶粘带防腐层技术标准》(SY/T0414-2017)的规定。\n7.拉杆钢筋应做防腐处理，费用承包人综合考虑在报价中\n8.未尽事宜满足设计及现行技术、质量验收规范要求","t",90.33,1500,135495,null,null,"损耗7%"]
[27,"700*640*40mm镀锌钢板","1.钢材品种、规格：700*640*40mm镀锌钢板\n2.要求：梁底预埋钢板进行热浸锌处理将钢板浸入600°C左右高温融化的锌液中，使钢板表面附着锌层，锌层厚度不得小于65um\n3.防火要求：防火要求及做法详见设计施工图。\n4.其它：未尽事宜满足设计及现行技术、质量验收规范要求","t",2.251,8000,18008]
[28,"板式橡胶支座 GBZJ350×450×99（支座甲供）","1.材质：板式橡胶支座（主材甲供） \n2.规格、型号：GBZJ350×450×99\n3.其它：未尽事宜满足设计及现行技术、质量验收规范要求","块",16,120,1920]
[29,"桥梁伸缩缝（伸缩缝甲供）","1.材料品种：伸缩缝 （伸缩缝甲供）\n2.规格、型号：D80型 \n3.混凝土种类、强度等级：聚丙烯纤维混凝土 C50（清单另列）\n4.含伸缩缝安装、调整、固定、二转及多次转运、预埋钢筋梳理、原有混凝土剔除、基层清理、建渣外弃等\n5.其它：未尽事宜满足设计及现行技术、质量验收规范要求","m",17.2,200,3440]
[30,"φ110UPVC泄水管","1.材料品种：UPVC泄水管 \n2.管径：φ110\n3.其它：未尽事宜满足设计及现行技术、质量验收规范要求","m",12.6,15,189]
["四","模板、脚手架工程"]
[31,"承台垫层、桥头搭板垫层、桥头搭板模板安拆","1.部位：垫层、搭板\n2.支模高度：综合\n3.模板类型：本项目承包人应根据施工经验，现场实际情况和企业自身情况综合考虑综合单价，不论采用何种材质规格及厚度的模板均不做调整，且必须达到相关要求\n4.支架材料：钢管、木支架综合，且包含使用的对拉螺杆、止水螺杆等一切费用\n5.其它：未尽事宜满足设计及现行技术、质量验收规范要求","m2",{"$f":"31.12+15.12","v":46.24},50,{"$f":"E39*F39","v":2312}]
[32,"承台模板安拆","1.部位：承台\n2.支模高度：综合\n3.模板类型：本项目承包人应根据施工经验，现场实际情况和企业自身情况综合考虑综合单价，不论采用何种材质规格及厚度的模板均不做调整，且必须达到相关要求\n4.支架材料：钢管、木支架综合，且包含使用的对拉螺杆、止水螺杆等一切费用\n5.其它：未尽事宜满足设计及现行技术、质量验收规范要求","m2",187.6,60,11256]
[33,"台帽及台身背墙模板安拆","1.部位：台帽及台身背墙\n2.支模高度：综合\n3.模板类型：本项目承包人应根据施工经验，现场实际情况和企业自身情况综合考虑综合单价，不论采用何种材质规格及厚度的模板均不做调整，且必须达到相关要求\n4.支架材料：钢管、木支架综合，且包含使用的对拉螺杆、止水螺杆等一切费用\n5.其它：未尽事宜满足设计及现行技术、质量验收规范要求","m2",798.96,70,55927.2]
[34,"盖梁模板安拆","1.部位：盖梁\n2.支模高度：综合\n3.模板类型：本项目承包人应根据施工经验，现场实际情况和企业自身情况综合考虑综合单价，不论采用何种材质规格及厚度的模板均不做调整，且必须达到相关要求\n4.支架材料：钢管、木支架综合，且包含使用的对拉螺杆、止水螺杆等一切费用\n5.其它：未尽事宜满足设计及现行技术、质量验收规范要求","m2",34.5,104,3588]
[35,"墩身模板安拆","1.部位：墩身\n2.支模高度：综合\n3.模板类型：本项目承包人应根据施工经验，现场实际情况和企业自身情况综合考虑综合单价，不论采用何种材质规格及厚度的模板均不做调整，且必须达到相关要求\n4.支架材料：钢管、木支架综合，且包含使用的对拉螺杆、止水螺杆等一切费用\n5.包含花瓶墩、墩身模板材料及模板安拆费\n6.其它：未尽事宜满足设计及现行技术、质量验收规范要求","m2",79.75,150,11962.5]
[36,"上部结构现浇混凝土模板","1.部位：防震挡块、支座垫石、翼板、横隔梁、桥面铺装、护栏基座、梁端封锚模板\n2.支模高度：综合\n3.模板类型：本项目承包人应根据施工经验，现场实际情况和企业自身情况综合考虑综合单价，不论采用何种材质规格及厚度的模板均不做调整，且必须达到相关要求\n4.支架材料：钢管、木支架综合，且包含使用的对拉螺杆、止水螺杆等一切费用\n5.模板的制作、安装、拆除、清理、打磨、定位固定、支撑体系搭设（如采用吊模）及施工全过程的模板维护、保养等全部工作内容，均由承包人自行统筹考虑，相关人工、材料、机械及所有相关费用均综合包含在报价中，不另行计取；模板的类型、规格、材质及搭设方案由承包人结合施工实际自行确定，确保满足设计及现行施工技术、质量验收规范要求，保证板结构几何尺寸、平整度及外观质量达标。\n6.其它：未尽事宜满足设计及现行技术、质量验收规范要求\n7.计算规则：按与混凝土接触面积计算","m2",{"$f":"17.14+148.22+86.8","v":252.16},60,15129.6]
[37,"墩身支架 满堂式钢管脚手架","1．名称：满堂式钢管支架 \n2．搭设高度及方式：承包人自行综合考虑\n3.本项目承包人应根据施工经验，现场实际情况和企业自身情况综合报价，包含搭设脚手架需要的所有材料、人工、机械、辅助措施等，需满足监理、业主及相关规范要求，搭设前应编制专项方案并通过监理和业主审核认可后施工\n4.未尽事宜满足设计及现行技术、质量验收规范要求\n5.脚手架地面混凝土硬化费用另计\n6.工作平台搭设、租赁费用由报价人综合考虑在投标报价中，梯笼以该项以立方计算\n7.计算规则：以现场实际搭设满堂脚手架扣除结构物按立方计算，工程量不得大于经发包人审批的施工方案工程量。","m3",{"$f":"(84-20)*(8)","v":512},22,11264]
[38,"脚手架地面混凝土硬化（商品混凝土甲供）","1.名称：脚手架地面混凝土硬化（混凝土甲供）\n2.施工内容：包含平整场地、碾压夯实、混凝土浇筑、表面拉毛 / 压纹、切缝伸缩缝、养护及成品保护等全部工序\n3.混凝土浇筑机械及方式：浇筑机械、施工方案由承包人自行确定；泵车、天泵费用由发包人承担；发包人负责提供临时便道及作业平台，承包人负责施工期间场内运输道路、浇筑作业场地修整，相关费用综合考虑在报价中。\n4.厚度：现场发包人确认\n5.未尽事宜满足设计及现行技术、质量验收规范要求","m3",{"v":50,"d":"50.00"},60,3000,null,null,"损耗4%"]
[39,"双排脚手架","1．名称：双排脚手架 \n2．搭设高度及方式：承包人自行综合考虑\n3.本项目承包人应根据施工经验，现场实际情况和企业自身情况综合报价，包含搭设脚手架需要的所有材料、人工、机械、辅助措施等，需满足监理、业主及相关规范要求，搭设前应编制专项方案并通过监理和业主审核认可后施工\n4.脚手架地面混凝土硬化费用另计\n5.未尽事宜满足设计及现行技术、质量验收规范要求\n6.计算规则：按所服务对象的垂直投影面积计算。","m2",{"$f":"27*10*2","v":540},15,8100]
[null,"合计",{"$nulls":4},{"$f":"SUM(G5:G47)","v":804809.55}]

{"sheet":"5号桥工程","index":5,"n_rows":51,"n_cols":10,"rows_kept":51,"merged":[[0,0,0,9],[1,0,3,0],[1,1,3,1],[1,2,3,2],[1,3,3,3],[1,4,3,4],[1,5,1,6],[1,7,1,8],[1,9,3,9],[2,5,3,5],[2,6,3,6],[2,7,3,7],[2,8,3,8],[4,1,4,2],[7,1,7,2],[22,1,22,2],[37,1,37,2]]}
["5号桥梁工程劳务施工清单与报价表"]
["序号","项目名称","项目特征描述","单位","工程量","采购最高限价（含税）",null,"投标报价",null,"备注"]
[{"$nulls":5},"全费用综合单价（元）","合价（元）","含税全费用单价（元）","含税合价（元）"]
[]
["一","土石方工程"]
[1,"场内土石方挖运填\n","1.完成项目范围内桥梁工程土石方开挖、转运、回填工程，工作内容包括但不限于以下工程内容：（1）土石方开挖、石方破碎大改小、土石方转运（含红线范围内取土回填转运，运距综合考虑）、回填等；开挖的各类土、石综合（详见地勘），现场建(废)渣等综合考虑；施工区域换填、回填桥梁作业区域土石方。\n2.填方来源：来源为现场红线内原有土石方，场内综合运距1-2km。\n3.开挖、回填标高：挖填标高均应满足设计要求，误差控制在设计标高±5cm内。\n4.开挖方式、场内运输方式：承包人自行确定。\n5.开挖方案和边坡施工防护及对管线、构筑物、建筑物等采取的保护措施须经业主批准，满足安全、文明施工相关规范及规定，包含在投标报价中。\n6.其他：临边及孔洞的防护、进出车辆冲洗管理、场内外路面清洗管理、投标单位自己操作人员的劳保防护用品、临时用水用电（含水电费用）、必要安全措施等由投标单位承担；现场出现超挖和欠挖现象，造成的损失由投标单位承担；施工内容涉及的检测（复检）费用和送样检测等费用由投标单位承担；机械进、出场费用（含多次进出场）由投标单位综合考虑，包含在投标报价中。                                                    \n7.其余要求：施工过程中应满足城管和环保要求。为保证施工工期并达到环保要求，夜间施工产生的措施费及赶工费等费用包含在综合单价中，履约过程中不接受调价。\n8.工程量以现场收方为准。","m3",124.6,18,{"$f":"E6*F6","v":2242.8}]
[2,"土石方开挖、外弃","1.完成项目范围内桥梁工程土石方开挖外弃工程，工作内容包括但不限于以下工程内容：（1）土石方开挖、石方破碎大改小、土石方转运外弃；（2）土石围堰开挖外弃；（3）桥梁基础开挖外弃；开挖的各类土、石综合（详见地勘），现场建(废)渣等综合考虑；\n2.外弃内容：开挖的各类土、石(含淤泥)综合，现场建(废)渣等综合考虑 \n3.弃土外运权责：发包人不指定弃土场，由承包人自行踏勘现场、选定合规弃土场、确定运输路线与运距；弃土外运涉及的运输、装卸、弃土场租赁 / 征用、合规手续办理、环保水保、防护等全部费用，均包含在综合单价内，发包人不另行支付。承包人承担弃土全流程合规责任，因违规产生的行政处罚、第三方索赔及全部风险损失，均由承包人全额承担，合同价款不作调整。\n4.开挖深度：开挖标高应满足设计要求，误差控制在设计标高±5cm内。\n5.开挖方式、场内运输方式：承包人自行确定。\n6.开挖方案和边坡施工防护及对管线、构筑物、建筑物等采取的保护措施须经业主批准，满足安全、文明施工相关规范及规定，包含在投标报价中。\n10.其他：临边及孔洞的防护、进出车辆冲洗管理、场内外路面清洗管理、投标单位自己操作人员的劳保防护用品、临时用水用电（含水电费用）、必要安全措施等由投标单位承担；现场出现超挖和欠挖现象，造成的损失由投标单位承担；施工内容的检测（复检）费用和送样检测等费用由投标单位承担；机械进、出场费用（含多次进出场）由投标单位综合考虑，包含在投标报价中。                                                    \n11.其余要求：施工过程中应满足城管和环保要求。为保证施工工期并达到环保要求，夜间施工产生的措施费及赶工费等费用包含在综合单价中。\n12.工程量以现场收方为准","m3",{"$f":"387-124.6+3000","v":3262.4},25,81560]
["二","下部结构 "]
[3,"承台垫层、桥头搭板垫层、桥头搭板混凝土浇筑（混凝土甲供）","1.混凝土强度等级：混凝土强度等级：采用商品混凝土，混凝土由发包人供应。\n2.混凝土浇筑机械及方式：浇筑机械、施工方案由承包人自行确定；泵车、天泵费用由发包人承担；发包人负责提供临时便道及作业平台，承包人负责施工期间场内运输道路、浇筑作业场地修整，相关费用综合考虑在报价中。\n3.垫层厚度：综合考虑；\n4.模板工程：模板费用单独列项计价。\n5.施工质量要求：施工工艺、质量标准均满足设计图纸及现行施工技术规范、质量验收标准。","m3",{"$f":"1.32+29.5+17.9+31.3","v":80.02},80,6401.6,null,null,"损耗4%"]
[4,"承台混凝土浇筑 （混凝土甲供）","1.混凝土强度等级：混凝土强度等级：采用商品混凝土，混凝土由发包人供应。\n2.混凝土浇筑机械及方式：浇筑机械、施工方案由承包人自行确定；泵车、天泵费用由发包人承担；发包人负责提供临时便道及作业平台，承包人负责施工期间场内运输道路、浇筑作业场地修整，相关费用综合考虑在报价中。\n3.养护及温控措施：混凝土浇筑完成后及时覆盖保湿养护，养护时间满足现行规范要求；大体积混凝土需采取测温、保温、降温等防裂措施，相关费用由承包人综合考虑在报价中。\n4.模板工程：模板费用单独列项计价。\n5.施工质量要求：施工工艺、质量标准均满足设计图纸及现行施工技术规范、质量验收标准。","m3",221.2,65,14378,null,null,"损耗4%"]
[5,"系梁混凝土浇筑 （混凝土甲供）","1.混凝土强度等级：混凝土强度等级：采用商品混凝土，混凝土由发包人供应。\n2.混凝土浇筑机械及方式：浇筑机械、施工方案由承包人自行确定；泵车、天泵费用由发包人承担；发包人负责提供临时便道及作业平台，承包人负责施工期间场内运输道路、浇筑作业场地修整，相关费用综合考虑在报价中。\n3.养护及温控措施：混凝土浇筑完成后及时覆盖保湿养护，养护时间满足现行规范要求；大体积混凝土需采取测温、保温、降温等防裂措施，相关费用由承包人综合考虑在报价中。\n4.模板工程：模板费用单独列项计价。\n5.施工质量要求：施工工艺、质量标准均满足设计图纸及现行施工技术规范、质量验收标准。","m3",11.7,65,760.5,null,null,"损耗4%"]
[6,"墩身混凝土浇筑（混凝土甲供）","1.混凝土强度等级：混凝土强度等级：采用商品混凝土，混凝土由发包人供应。\n2.混凝土浇筑机械及方式：浇筑机械、施工方案由承包人自行确定；泵车、天泵费用由发包人承担；发包人负责提供临时便道及作业平台，承包人负责施工期间场内运输道路、浇筑作业场地修整，相关费用综合考虑在报价中。\n3.养护及温控措施：混凝土浇筑完成后及时覆盖保湿养护，养护时间满足现行规范要求；大体积混凝土需采取测温、保温、降温等防裂措施，相关费用由承包人综合考虑在报价中。\n4.模板工程单独计量计价\n5.施工质量要求：施工工艺、质量标准均满足设计图纸及现行施工技术规范、质量验收标准。","m3",42.6,70,2982,null,null,"损耗4%"]
[7,"盖梁混凝土浇筑（混凝土甲供）","1.混凝土强度等级：混凝土强度等级：采用商品混凝土，混凝土由发包人供应。\n2.混凝土浇筑机械及方式：浇筑机械、施工方案由承包人自行确定；泵车、天泵费用由发包人承担；发包人负责提供临时便道及作业平台，承包人负责施工期间场内运输道路、浇筑作业场地修整，相关费用综合考虑在报价中。\n3.养护及温控措施：混凝土浇筑完成后及时覆盖保湿养护，养护时间满足现行规范要求；大体积混凝土需采取测温、保温、降温等防裂措施，相关费用由承包人综合考虑在报价中。\n4.模板工程：模板费用单独列项计价。\n5.施工质量要求：施工工艺、质量标准均满足设计图纸及现行施工技术规范、质量验收标准。","m3",53.3,70,3731,null,null,"损耗4%"]
[8,"台身及侧墙片石混凝土浇筑（混凝土甲供、片石乙供）","1.混凝土强度等级：片石商品砼（混凝土甲供、片石乙供）\n2.混凝土浇筑机械及方式：浇筑机械、施工方案由承包人自行确定；泵车、天泵费用由发包人承担；发包人负责提供临时便道及作业平台，承包人负责施工期间场内运输道路、浇筑作业场地修整，相关费用综合考虑在报价中。\n3.片石由承包人提供，片石量不大于结构体积的 20%，厚度150～300mm，净距 ≥150mm，不得接触钢筋与预埋件，抗压强度≥30MPa，且不低于混凝土强度等级。\n4.养护及温控措施：混凝土浇筑完成后及时覆盖保湿养护，养护时间满足现行规范要求；大体积混凝土需采取测温、保温、降温等防裂措施，相关费用由承包人综合考虑在报价中。\n5.模板工程：模板费用单独列项计价。\n6.施工质量要求：施工工艺、质量标准均满足设计图纸及现行施工技术规范、质量验收标准。","m3",337.6,115,38824,null,null,"损耗4%"]
[9,"台帽混凝土浇筑（混凝土甲供）","1.混凝土强度等级：混凝土强度等级：采用商品混凝土，混凝土由发包人供应。\n2.混凝土浇筑机械及方式：浇筑机械、施工方案由承包人自行确定；泵车、天泵费用由发包人承担；发包人负责提供临时便道及作业平台，承包人负责施工期间场内运输道路、浇筑作业场地修整，相关费用综合考虑在报价中。\n3.养护及温控措施：混凝土浇筑完成后及时覆盖保湿养护，养护时间满足现行规范要求；大体积混凝土需采取测温、保温、降温等防裂措施，相关费用由承包人综合考虑在报价中。\n4.模板工程：模板费用单独列项计价。\n5.施工质量要求：施工工艺、质量标准均满足设计图纸及现行施工技术规范、质量验收标准。","m3",24.6,70,1722,null,null,"损耗4%"]
[10,"台身及侧墙混凝土浇筑（混凝土甲供）","1.混凝土强度等级：混凝土强度等级：采用商品混凝土，混凝土由发包人供应。\n2.混凝土浇筑机械及方式：浇筑机械、施工方案由承包人自行确定；泵车、天泵费用由发包人承担；发包人负责提供临时便道及作业平台，承包人负责施工期间场内运输道路、浇筑作业场地修整，相关费用综合考虑在报价中。\n3.厚度：综合考虑；\n4.模板工程：模板费用单独列项计价。\n5.施工质量要求：施工工艺、质量标准均满足设计图纸及现行施工技术规范、质量验收标准。","m3",13.5,70,945,null,null,"损耗4%"]
[11,"砂砾垫层","1.垫层材料：砂砾垫层\n2.厚度：10cm\n3.位置：桥台锥坡基层\n4.其他：满足设计及现行施工技术、质量验收规范要求","m3",11.6,160,1856]
[12,"锥坡 人工修坡","1.锥坡清理：浆砌片石施工前，按设计坡比、坡度及标高对锥坡坡面进行人工修整、清理，清除坡面浮土、杂物、松散土体及危石，修整后坡面平整、顺直、密实，无凹凸、松动现象，坡比符合设计要求\n2.做法：满足设计及现行施工技术、质量验收规范要求\n3.计算规则：以实际修坡面积计算","m2",300,4,1200]
[13,"锥坡 M7.5浆砌片石","1.部位：桥台锥坡 \n2.材料品种、规格：片石 \n3.砂浆强度等级 ：M7.5 湿拌砂浆\n4.其它：未尽事宜满足设计及现行技术、质量验收规范要求","m3",53.5,430,23005]
[14,"钢筋制作、运输、安装（钢筋甲供）","1.钢筋种类、规格：种类及规格综合（钢筋甲供）\n2.钢筋连接方式：各种连接方式承包人综合考虑在报价中\n3.其他：甲方将钢筋原材运至现场指定点后，卸车、堆放、储存、场内转运、保护、及除锈等工作由承包人实施；钢筋吊运、安装、固定、保护层垫块安装以及其他相关附属及所有工作均包含在综合单价中，不另行计算\n4.计量规则：依据图纸所示，按钢筋设计重量计算，不计搭接、损耗、固定钢筋的材料、定位架立钢筋、吊装钢筋、钢板、铁丝焊条等，除甲供材外，其他附属材料均自行购买，已包含在此单价中\n5.包含完成该工作所需的人工费、材料费（含辅材）、机械费、机械进出场费、材料场内外运输、二次或多次转运费均已包含在单价内；\n6.钢筋无粘接处涂环氧酚漆二层、内包玻璃丝布二层、外缠聚乙烯胶带二层；环氧酚漆颜色、粘度、附着力、韧性等执行相关国家标准;玻璃丝布应具有良好的防腐性能,满足行业相关要求;聚乙烯胶带各项性能指标应完全符合《钢制管道聚乙烯胶粘带防腐层技术标准》(SY/T0414-2017)的规定。\n7.拉杆钢筋应做防腐处理，费用承包人综合考虑在报价中\n8.未尽事宜满足设计及现行技术、质量验收规范要求","t",{"$f":"1.2+7.185+6.689+24.799","v":39.873},1500,59809.5,null,null,"损耗7%"]
[15,"铰缝侧面凿毛","1.铰缝侧面凿毛\n2.其它：未尽事宜满足设计及现行技术、质量验收规范要求","m2",312,4.5,1404]
[16,"M15封底缝砂浆","1.M15封底缝砂浆\n2.其它：未尽事宜满足设计及现行技术、质量验收规范要求","m3",0.3,600,180]
["三","上部结构"]
[17,"预制空心板制","1.部位：空心板\n2.规格型号：预制空心板（混凝土甲供）\n3.工作内容：包括但不限于搭设工作平台、脚手架及模板材料、模板制作、安、拆、修、涂脱模剂、搬运、堆放，混凝土灌注、养护、成品板移运存放，预制构件运至施工现场，预留预埋件等全部工作内容；支座安装、梁体安装、梁体就位，过跨、空心板临时固定牢固及其他附属工作；\n4.计量规则：依据图纸所示，以实际完成并经双方验收合格的混凝土工程量为准；除甲供材料外，其他附属材料均自行购买，已包含在此单价中\n5.吊装及安装方式、运输方式：承包人自行考虑\n6.预制梁达到清水混凝土效果，如达不到效果自行处理，费用自行承担。\n7.预制、堆放场地由甲方指定，预制场辅材、钢模板、张拉设备、张拉设备的检校费用由承包人负责\n8.未尽事宜满足设计及现行技术、质量验收规范要求","m3",{"$f":"119.8+7.6","v":127.4},1068,{"$f":"E24*F24","v":136063.2}]
[18,"现浇空心板混凝土浇筑（混凝土甲供）","1.混凝土强度等级：混凝土强度等级：采用商品混凝土，混凝土由发包人供应。\n2.混凝土浇筑机械及方式：浇筑机械、施工方案由承包人自行确定；泵车、天泵费用由发包人承担；发包人负责提供临时便道及作业平台，承包人负责施工期间场内运输道路、浇筑作业场地修整，相关费用综合考虑在报价中。\n3.养护及温控措施：混凝土浇筑完成后及时覆盖保湿养护，养护时间满足现行规范要求；相关费用由承包人综合考虑在报价中。\n4.模板工程：模板费用单独列项计价。\n5.施工质量要求：施工工艺、质量标准均满足设计图纸及现行施工技术规范、质量验收标准。","m3",15.4,210,3234,null,null,"损耗4%"]
[19,"桥面铺装混凝土浇筑（混凝土甲供）","1.混凝土强度等级：混凝土强度等级：采用商品混凝土，混凝土由发包人供应。\n2.混凝土浇筑机械及方式：浇筑机械、施工方案由承包人自行确定；泵车、天泵费用由发包人承担；发包人负责提供临时便道及作业平台，承包人负责施工期间场内运输道路、浇筑作业场地修整，相关费用综合考虑在报价中。\n3.养护及温控措施：混凝土浇筑完成后及时覆盖保湿养护，养护时间满足现行规范要求；相关费用由承包人综合考虑在报价中。\n4.模板工程：模板费用单独列项计价。\n5.在浇筑桥面现浇层混凝土前，必须保证预制梁顶面混凝土拉毛并清洗干净；相关费用由承包人综合考虑在报价中。\n5.施工质量要求：施工工艺、质量标准均满足设计图纸及现行施工技术规范、质量验收标准。","m3",35.9,100,3590,null,null,"损耗4%"]
[20,"护栏基座混凝土浇筑（混凝土甲供）","1.混凝土强度等级：混凝土强度等级：采用商品混凝土，混凝土由发包人供应。\n2.混凝土浇筑机械及方式：浇筑机械、施工方案由承包人自行确定；泵车、天泵费用由发包人承担；发包人负责提供临时便道及作业平台，承包人负责施工期间场内运输道路、浇筑作业场地修整，相关费用综合考虑在报价中。\n3.养护及温控措施：混凝土浇筑完成后及时覆盖保湿养护，养护时间满足现行规范要求；相关费用由承包人综合考虑在报价中。\n4.模板工程：模板费用单独列项计价。\n5.施工质量要求：施工工艺、质量标准均满足设计图纸及现行施工技术规范、质量验收标准。","m3",14.6,120,1752,null,null,"损耗4%"]
[21,"防震挡块混凝土浇筑（混凝土甲供）","1.混凝土强度等级：混凝土强度等级：采用商品混凝土，混凝土由发包人供应。\n2.混凝土浇筑机械及方式：浇筑机械、施工方案由承包人自行确定；泵车、天泵费用由发包人承担；发包人负责提供临时便道及作业平台，承包人负责施工期间场内运输道路、浇筑作业场地修整，相关费用综合考虑在报价中。\n3.养护及温控措施：混凝土浇筑完成后及时覆盖保湿养护，养护时间满足现行规范要求；相关费用由承包人综合考虑在报价中。\n4.模板工程：模板费用单独列项计价。\n5.施工质量要求：施工工艺、质量标准均满足设计图纸及现行施工技术规范、质量验收标准。","m3",0.26,200,52,null,null,"损耗4%"]
[22,"支座垫石混凝土浇筑（混凝土甲供）","1.混凝土强度等级：混凝土强度等级：采用商品混凝土，混凝土由发包人供应。\n2.混凝土浇筑机械及方式：浇筑机械、施工方案由承包人自行确定；泵车、天泵费用由发包人承担；发包人负责提供临时便道及作业平台，承包人负责施工期间场内运输道路、浇筑作业场地修整，相关费用综合考虑在报价中。\n3.养护及温控措施：混凝土浇筑完成后及时覆盖保湿养护，养护时间满足现行规范要求；相关费用由承包人综合考虑在报价中。\n4.模板工程：模板费用单独列项计价。\n5.施工质量要求：施工工艺、质量标准均满足设计图纸及现行施工技术规范、质量验收标准。","m3",1.3,200,260,null,null,"损耗4%"]
[23,"聚丙烯纤维混凝土混凝土浇筑（混凝土甲供）","1.混凝土强度等级：混凝土强度等级：采用商品混凝土，混凝土由发包人供应。\n2.混凝土浇筑机械及方式：浇筑机械、施工方案由承包人自行确定；泵车、天泵费用由发包人承担；发包人负责提供临时便道及作业平台，承包人负责施工期间场内运输道路、浇筑作业场地修整，相关费用综合考虑在报价中。\n3.养护及温控措施：混凝土浇筑完成后及时覆盖保湿养护，养护时间满足现行规范要求；相关费用由承包人综合考虑在报价中。\n4.模板工程：模板费用单独列项计价。\n5.施工质量要求：施工工艺、质量标准均满足设计图纸及现行施工技术规范、质量验收标准。","m3",2.2,200,440,null,null,"损耗4%"]
[24,"板端封锚混凝土浇筑（混凝土甲供）","1.混凝土强度等级：混凝土强度等级：采用商品混凝土，混凝土由发包人供应。\n2.混凝土浇筑机械及方式：浇筑机械、施工方案由承包人自行确定；泵车、天泵费用由发包人承担；发包人负责提供临时便道及作业平台，承包人负责施工期间场内运输道路、浇筑作业场地修整，相关费用综合考虑在报价中。\n3.养护及温控措施：混凝土浇筑完成后及时覆盖保湿养护，养护时间满足现行规范要求；相关费用由承包人综合考虑在报价中。\n4.模板工程：模板费用单独列项计价。\n5.施工质量要求：施工工艺、质量标准均满足设计图纸及现行施工技术规范、质量验收标准。","m3",1.3,200,260,null,null,"损耗4%"]
[25,"钢绞线 φs15.2（5号桥）（钢绞线、永久锚具甲供）","1.钢绞线及锚夹具、垫板卸车搬运至甲方指定地点后覆盖、制作安装预应力钢绞线：\n2.工作内容：包含搭拆临时脚手架及操作平台；材料卸车、场内材料倒运；钢绞线制束、穿束，安锚具（锚具甲供、工作锚承包人自行考虑）、锚垫板等；张拉、切割，砼凿毛、清洗孔道，压浆，封锚头，材料运输；按设计图纸为完成本项工作的全部工作内容。\n3、压浆规格：42.5 级以上的低碱普通硅酸盐水泥，压浆参数详见公路桥涵施工技术规范                                                        4、计量规则：在设计数量范围内，以现场完成的钢绞线重量计算，钢绞线长度按两端锚具间的理论长度计算，锚具外的工作长度不予计量；锚具、管道、锚板及联结钢板等不单独计量；除甲供材外，其他附属材料均自行购买，已包含在此单价中。                              \n5.未尽事宜满足设计及现行技术、质量验收规范要求","t",3.382,1800,6087.6]
[26,"预埋硬塑料套管 内径80mm","1.安装部位(室内、外)：室外\n2.材质：硬塑料套管\n3.型号、规格：DN80\n4.连接方式：详设计施工图\n5.压力试验及冲洗：满足设计及规范要求  \n6.管道标识：满足设计及规范要求\n7.预留排气孔及排水孔等费用由承包人综合考虑在报价中\n8.其它：未尽事宜满足设计及现行技术、质量验收规范要求","m",488,9.5,4636]
[27,"钢筋制作、运输、安装（钢筋甲供）","1.钢筋种类、规格：种类及规格综合（钢筋甲供）\n2.钢筋连接方式：各种连接方式承包人综合考虑在报价中\n3.其他：甲方将钢筋原材运至现场指定点后，卸车、堆放、储存、场内转运、保护、及除锈等工作由承包人实施；钢筋吊运、安装、固定、保护层垫块安装以及其他相关附属及所有工作均包含在综合单价中，不另行计算\n4.计量规则：依据图纸所示，按钢筋设计重量计算，不计搭接、损耗、固定钢筋的材料、定位架立钢筋、吊装钢筋、钢板、铁丝焊条等，除甲供材外，其他附属材料均自行购买，已包含在此单价中\n5.包含完成该工作所需的人工费、材料费（含辅材）、机械费、机械进出场费、材料场内外运输、二次或多次转运费均已包含在单价内；\n6.钢筋无粘接处涂环氧酚漆二层、内包玻璃丝布二层、外缠聚乙烯胶带二层；环氧酚漆颜色、粘度、附着力、韧性等执行相关国家标准;玻璃丝布应具有良好的防腐性能,满足行业相关要求;聚乙烯胶带各项性能指标应完全符合《钢制管道聚乙烯胶粘带防腐层技术标准》(SY/T0414-2017)的规定。\n7.拉杆钢筋应做防腐处理，费用承包人综合考虑在报价中\n8.未尽事宜满足设计及现行技术、质量验收规范要求","t",47.63,1500,71445,null,null,"损耗7%"]
[28,"板式橡胶支座 GBZY200×49（支座甲供）","1.材质：板式橡胶支座 （支座甲供）\n2.规格、型号：GBZY200×49\n3.其它：未尽事宜满足设计及现行技术、质量验收规范要求","块",112,120,13440]
[29,"桥梁伸缩缝（伸缩缝甲供）","1.材料品种：伸缩缝 （伸缩缝甲供）\n2.规格、型号：D80型 \n3.混凝土种类、强度等级：聚丙烯纤维混凝土 C50（清单另列）\n4.含伸缩缝安装、调整、固定、二转及多次转运、预埋钢筋梳理、原有混凝土剔除、基层清理、建渣外弃等\n5.其它：未尽事宜满足设计及现行技术、质量验收规范要求","m",17.2,200,3440]
[30,"φ110UPVC泄水管","1.材料品种：UPVC泄水管 \n2.管径：φ110\n3.其它：未尽事宜满足设计及现行技术、质量验收规范要求","m",5.6,15,84]
["四","模板、脚手架工程"]
[31,"承台垫层、桥头搭板垫层、桥头搭板模板安拆","1.部位：垫层、搭板\n2.支模高度：综合\n3.模板类型：本项目承包人应根据施工经验，现场实际情况和企业自身情况综合考虑综合单价，不论采用何种材质规格及厚度的模板均不做调整，且必须达到相关要求\n4.支架材料：钢管、木支架综合，且包含使用的对拉螺杆、止水螺杆等一切费用\n5.其它：未尽事宜满足设计及现行技术、质量验收规范要求","m2",{"$f":"23.07+15.12","v":38.19},50,{"$f":"E39*F39","v":1909.5}]
[32,"承台模板安拆","1.部位：承台\n2.支模高度：综合\n3.模板类型：本项目承包人应根据施工经验，现场实际情况和企业自身情况综合考虑综合单价，不论采用何种材质规格及厚度的模板均不做调整，且必须达到相关要求\n4.支架材料：钢管、木支架综合，且包含使用的对拉螺杆、止水螺杆等一切费用\n5.其它：未尽事宜满足设计及现行技术、质量验收规范要求","m2",104.64,60,6278.4]
[33,"台帽及台身背墙模板安拆","1.部位：台帽及台身背墙\n2.支模高度：综合\n3.模板类型：本项目承包人应根据施工经验，现场实际情况和企业自身情况综合考虑综合单价，不论采用何种材质规格及厚度的模板均不做调整，且必须达到相关要求\n4.支架材料：钢管、木支架综合，且包含使用的对拉螺杆、止水螺杆等一切费用\n5.其它：未尽事宜满足设计及现行技术、质量验收规范要求","m2",958.82,70,67117.4]
[34,"盖梁模板安拆","1.部位：盖梁\n2.支模高度：综合\n3.模板类型：本项目承包人应根据施工经验，现场实际情况和企业自身情况综合考虑综合单价，不论采用何种材质规格及厚度的模板均不做调整，且必须达到相关要求\n4.支架材料：钢管、木支架综合，且包含使用的对拉螺杆、止水螺杆等一切费用\n5.其它：未尽事宜满足设计及现行技术、质量验收规范要求","m2",{"$f":"38.91*3","v":116.73},104,12139.92]
[35,"系梁模板安拆","1.部位：系梁\n2.支模高度：综合\n3.模板类型：本项目承包人应根据施工经验，现场实际情况和企业自身情况综合考虑综合单价，不论采用何种材质规格及厚度的模板均不做调整，且必须达到相关要求\n4.支架材料：钢管、木支架综合，且包含使用的对拉螺杆、止水螺杆等一切费用\n5.其它：未尽事宜满足设计及现行技术、质量验收规范要求","m2",45.2,150,6780]
[36,"墩身模板安拆","1.部位：墩身\n2.支模高度：综合\n3.模板类型：本项目承包人应根据施工经验，现场实际情况和企业自身情况综合考虑综合单价，不论采用何种材质规格及厚度的模板均不做调整，且必须达到相关要求\n4.支架材料：钢管、木支架综合，且包含使用的对拉螺杆、止水螺杆等一切费用\n5.包含花瓶墩、墩身模板材料及模板安拆费\n6.其它：未尽事宜满足设计及现行技术、质量验收规范要求","m2",170.19,150,25528.5]
[37,"空心板混凝土封端模板安拆","1.部位：混凝土封端\n2.支模高度：综合\n3.模板类型：本项目承包人应根据施工经验，现场实际情况和企业自身情况综合考虑综合单价，不论采用何种材质规格及厚度的模板均不做调整，且必须达到相关要求\n4.支架材料：钢管、木支架综合，且包含使用的对拉螺杆、止水螺杆等一切费用\n5.其它：未尽事宜满足设计及现行技术、质量验收规范要求","m2",3.78,60,226.8]
[38,"上部结构现浇混凝土模板","1.部位：防震挡块、支座垫石、翼板、横隔梁、桥面铺装、护栏基座、梁端封锚、现浇空心板模板\n2.支模高度：综合\n3.模板类型：本项目承包人应根据施工经验，现场实际情况和企业自身情况综合考虑综合单价，不论采用何种材质规格及厚度的模板均不做调整，且必须达到相关要求\n4.支架材料：钢管、木支架综合，且包含使用的对拉螺杆、止水螺杆等一切费用\n5.模板的制作、安装、拆除、清理、打磨、定位固定、支撑体系搭设（如采用吊模）及施工全过程的模板维护、保养等全部工作内容，均由承包人自行统筹考虑，相关人工、材料、机械及所有相关费用均综合包含在报价中，不另行计取；模板的类型、规格、材质及搭设方案由承包人结合施工实际自行确定，确保满足设计及现行施工技术、质量验收规范要求，保证板结构几何尺寸、平整度及外观质量达标。\n6.其它：未尽事宜满足设计及现行技术、质量验收规范要求\n7.计算规则：按与混凝土接触面积计算","m2",{"$f":"60.83+3.78+62.8+57.4+12.2+14.7","v":211.71},60,12702.6]
[39,"墩身支架 满堂式钢管脚手架","1．名称：满堂式钢管支架 \n2．搭设高度及方式：承包人自行综合考虑\n3.本项目承包人应根据施工经验，现场实际情况和企业自身情况综合报价，包含搭设脚手架需要的所有材料、人工、机械、辅助措施等，需满足监理、业主及相关规范要求，搭设前应编制专项方案并通过监理和业主审核认可后施工\n4.未尽事宜满足设计及现行技术、质量验收规范要求\n5.脚手架地面混凝土硬化费用另计\n6.工作平台搭设、租赁费用由报价人综合考虑在投标报价中，梯笼以该项以立方计算\n7.计算规则：以现场实际搭设满堂脚手架扣除结构物按立方计算，工程量不得大于经发包人审批的施工方案工程量。","m3",{"$f":"10*(6.8+2+11.5+2+8.7+2)","v":330},22,7260]
[40,"脚手架地面混凝土硬化（商品混凝土甲供）","1.名称：脚手架地面混凝土硬化（混凝土甲供）\n2.施工内容：包含平整场地、碾压夯实、混凝土浇筑、表面拉毛 / 压纹、切缝伸缩缝、养护及成品保护等全部工序\n3.混凝土浇筑机械及方式：浇筑机械、施工方案由承包人自行确定；泵车、天泵费用由发包人承担；发包人负责提供临时便道及作业平台，承包人负责施工期间场内运输道路、浇筑作业场地修整，相关费用综合考虑在报价中。\n4.厚度：现场发包人确认\n5.未尽事宜满足设计及现行技术、质量验收规范要求","m3",{"v":30,"d":"30.00"},60,1800,null,null,"损耗4%"]
[41,"双排脚手架","1．名称：双排脚手架 \n2．搭设高度及方式：承包人自行综合考虑\n3.本项目承包人应根据施工经验，现场实际情况和企业自身情况综合报价，包含搭设脚手架需要的所有材料、人工、机械、辅助措施等，需满足监理、业主及相关规范要求，搭设前应编制专项方案并通过监理和业主审核认可后施工\n4.脚手架地面混凝土硬化费用另计\n5.未尽事宜满足设计及现行技术、质量验收规范要求\n6.计算规则：按所服务对象的垂直投影面积计算。","m2",{"$f":"27*8*2","v":432},15,6480]
[42,"穿心棒工艺施工费（5号桥）","1．名称：穿心棒施工\n2．搭设高度及方式：承包人自行综合考虑\n3.本项目承包人应根据施工经验，现场实际情况和企业自身情况综合报价，包含穿心棒需要的所有材料、人工、机械、辅助措施等，需满足监理、业主及相关规范要求，搭设前应编制专项方案并通过监理和业主审核认可后施工\n4.未尽事宜满足设计及现行技术、质量验收规范要求","次",3,30000,90000]
[null,"合计",{"$nulls":4},{"$f":"SUM(G5:G50)","v":724008.32}]

{"sheet":"预制场修建和其它费用","index":6,"n_rows":17,"n_cols":10,"rows_kept":17,"merged":[[0,0,0,9],[1,0,3,0],[1,1,3,1],[1,2,3,2],[1,3,3,3],[1,4,3,4],[1,5,1,6],[1,7,1,8],[1,9,3,9],[2,5,3,5],[2,6,3,6],[2,7,3,7],[2,8,3,8],[16,0,16,9]]}
["桥梁工程措施项目清单与报价表"]
["序号","项目名称","项目特征描述","单位","工程量","采购最高限价（含税）",null,"投标报价",null,"备注"]
[{"$nulls":5},"全费用综合单价（元）","合价（元）","含税全费用单价（元）","含税合价（元）"]
[]
["一、预制场"]
[1,"预制场及台座、枕梁、排水沟混凝土浇筑（商品混凝土甲供）","1.部位:预制场及台座、枕梁、排水沟混凝土浇筑\n2.混凝土强度等级：混凝土规格综合（商品混凝土甲供）\n3.混凝土浇筑机械及方式：浇筑机械、施工方案由承包人自行确定；泵车、天泵费用由发包人承担；发包人负责提供临时便道及作业平台，承包人负责施工期间场内运输道路、浇筑作业场地修整，相关费用综合考虑在报价中。存梁区枕梁上部枕木及台座PVC50管包含在综合单价内，不再单独计算\n4.混凝土运输及浇筑方式：承包人自行考虑\n5.未尽事宜满足设计及现行技术、质量验收规范要求","m3",{"$f":"800-324","v":476},60,{"$f":"E6*F6","v":28560},null,null,"损耗4%"]
[2,"预制场场地混凝土硬化（商品混凝土甲供）","1.名称：桥梁预制场场地混凝土硬化（混凝土甲供）\n2.施工内容：包含平整场地、碾压夯实、混凝土浇筑、表面拉毛 / 压纹、切缝伸缩缝、养护及成品保护等全部工序\n3.混凝土浇筑机械及方式：浇筑机械、施工方案由承包人自行确定；泵车、天泵费用由发包人承担；发包人负责提供临时便道及作业平台，承包人负责施工期间场内运输道路、浇筑作业场地修整，相关费用综合考虑在报价中。\n4.厚度：现场发包人确认\n5.未尽事宜满足设计及现行技术、质量验收规范要求","m3",{"$f":"12*27.78*0.18+324","v":{"v":384.0048,"d":"384.00"}},60,{"$f":"E7*F7","v":{"v":23040.288,"d":"23040.29"}},null,null,"损耗4%"]
[3,"钢筋制作、不锈钢板制作安装、角钢制作安装（钢材甲供）","1.钢筋种类、规格：钢筋、台座顶面不锈钢板、角钢综合（甲供）承包人负责根据现场实际情况进行切割、拼装、焊接、预埋，费用由承包人承担\n2.钢筋连接方式：各种连接方式承包人综合考虑在报价中\n3.其他：甲方将钢筋成品运至现场指定点后的卸车、堆放、储存、场内转运、保护、及除锈等工作；钢筋吊运、安装、固定、保护层垫块安装以及其他相关附属及所有工作，钢筋制作棚与桩基班组公用，如不能公用，须由承包人自行搭设，不再单独计取费用。\n4.计量规则：依据图纸所示，按钢筋设计重量计算，不计搭接、损耗、固定钢筋的材料、定位架立钢筋、吊装钢筋、钢板、铁丝焊条等，除甲供材外，其他附属材料均自行购买，已包含在此单价中\n5.未尽事宜满足设计及现行技术、质量验收规范要求","t",11,1500,{"$f":"E8*F8","v":16500},null,null,"损耗7%"]
[4,"预制场枕梁、轨道、混凝土基层、台座、场地硬化等模板","1.部位:枕梁、轨道、混凝土基层、台座\n2.支模高度：综合\n3.模板类型：本项目承包人应根据施工经验，现场实际情况和企业自身情况综合考虑综合单价，不论采用何种材质规格及厚度的模板均不做调整，且必须达到相关要求\n4.支架材料：钢管、木支架综合，且包含使用的对拉螺杆、止水螺杆等一切费用\n5.其它：未尽事宜满足设计及现行技术、质量验收规范要求","m2",1200,60,{"$f":"E9*F9","v":72000}]
[5,"预制场破碎、外运","1.废弃料品种：拆除预制场混凝土（钢筋、角钢由承包人自行处理，不锈钢板拆除后需交由项目部处理）\n2.外弃运输方式、运距、弃土场地及费用:弃土场为甲方指定弃土场，弃土场费用由承包人自行考虑在报价中，弃土运距约8km（红线边线至弃土场）；\n3.未尽事宜满足设计及现行技术、质量验收规范要求","m3",800,60,{"$f":"E10*F10","v":48000}]
["二、水电费"]
[9,"施工用电","1.发包人不提供用电接驳口，承包人需自备发电机或自行接电，发电机购置或租赁、燃油费、电费、水费、接驳费、协调费、维护费、人工费、电费等一切与此相关的费用均已包含在综合单价中，发包人不另行支付任何费用\n2.发电机型号：应根据自身施工经验，现场实际情况和企业自身情况综合考虑型号，需满足现场施工及工期要求\n3.该费用为整个项目包干使用，结算时不做调整","项",1,{"$f":"(300*90+1000*90+3500*3)","v":127500},{"$f":"E12*F12","v":127500}]
[10,"施工用水","1.发包人不提供施工用水接驳口，承包人需自行接驳水源或自行解决用水，水费、材料费、机械费、关于用水的临时设施费、接驳费、协调费、管线铺设及拆除费、维护费、人工费等一切与此相关的费用均已包含在综合单价中，发包人不另行支付任何费用\n2.该费用为整个项目包干使用，结算时不做调整","项",1,10000,{"$f":"E13*F13","v":10000}]
["三、抽排水措施"]
[11,"基坑降排水","1.名称：基坑降排水\n2.规格型号：综合考虑各类排水需求，包含潜水泵、离心泵等不同类型抽水设备，功率及扬程满足本工程各部位积水抽排及降水作业要求\n3.工作内容：抽水机设备进出场、安装调试、拆除及移位；配套管路、电缆、阀门等辅材的安装与拆除；积水抽排、降水作业及设备日常维护保养\n4.计量方式：按项计算，总价包干\n5.工作范围：覆盖本工程施工区域内基坑、承台、墩台等所有部位的积水抽排及降水作业\n6.发包人不提供抽水机设备及配套辅材，由承包人自行配备；包含设备燃油/电费、操作人员人工等全部费用\n7.达到要求：满足正常施工及进度要求","项",1,20000,{"$f":"E15*F15","v":20000}]
[null,"合计",{"$nulls":4},{"$f":"SUM(G6:G15)","v":{"v":345600.288,"d":"345600.29"}}]
["注：\n1.预制场地为两处、分别为空心板预制场地(K6+200附近)和T梁预制场地（K1+900附近）"]

{"sheet":"机械租赁费","index":7,"n_rows":12,"n_cols":11,"rows_kept":12,"merged":[[0,0,0,10],[1,0,2,0],[1,1,2,1],[1,2,2,2],[1,3,2,3],[1,4,2,4],[1,5,2,5],[1,6,1,9],[1,10,2,10],[3,1,3,2],[11,0,11,10]]}
["桥梁工程机械租赁清单与报价表"]
["序号","项目名称","包含内容","单位","单项最高控制价（含税）","工程量","投标报价（含税）",{"$nulls":3},"备注"]
[{"$nulls":6},"租赁时间\n（月）","租金\n(元/月）","含税合价（元）","机械明细（报价人必填）"]
[" 一","机械租赁",null," ",null," "]
[1,"垂直运输机械进出场及安拆费","1.机械设备名称：垂直运输机械（如吊车、龙门吊等）进出场及安拆费\n2.规格、型号：报价人根据项目特点自行考虑\n3.本项目报价人应根据施工经验，现场实际情况和企业自身情况综合报价\n4.工作内容：设备往返运输、装卸车、捆扎固定、道路通行协调、场地装卸条件配合、设备防护及保护\n5.费用包含：进、出场全过程运输费、装卸费、路桥费、装卸机械配合费、人工配合费、设备保护费、协调费、安拆费、油费、配备司机等费用\n6.未尽事宜满足设计及现行技术、质量验收规范要求\n","项",100000,1,"/","/",null,null,"此项按项报价，总价包干，但需注明具体机械名称和数量明细"]
[2,"垂直运输机械租赁费（如吊车、龙门吊等）","1.机械设备名称：垂直运输机械（如吊车、龙门吊等）\n2.规格、型号：报价人根据项目特点自行考虑\n3.本项目报价人应根据施工经验及施工工期，现场实际情况和企业自身情况综合报价，安装、拆除、周转、报检及其余不可预见费用报价人自行考虑\n4.设备资质资料齐全，操作人员持证上岗、经验熟练；设备状态完好、性能稳定，无故障隐患；报价已包含设备燃油和配备司机的费用。\n5.未尽事宜满足设计及现行技术、质量验收规范要求","项",300000,1,{"$nulls":4},"本项总控制价为300000元，报价人自行根据施工组织、施工和工期安排填报机械租赁时间（月）和月租金并报总价，总价包干"]
[3,"架桥机械进出场及安拆费","1.机械设备名称：架桥机械进出场及安拆费\n2.规格、型号：报价人根据项目特点自行考虑\n3.本项目报价人应根据施工经验，现场实际情况和企业自身情况综合报价\n4.工作内容：设备进出场、现场安装、拼装、加固、调试、试吊、检测、验收备案及后期拆卸、清理归堆\n5.含配套工作：安装拆卸所需人工、辅助机械、安全防护、临时支撑、专项施工方案编制、专家论证、特种作业人员持证上岗等\n6.费用包含：进、出场全过程运输费、装卸费、路桥费、装卸机械配合费、人工配合费、设备保护费、协调费、安拆费、油费、配备司机等费用\n7.未尽事宜满足设计及现行技术、质量验收规范要求","项",100000,1,"/","/",null,null,"此项按项报价，总价包干，但需注明具体机械名称及数量明细。"]
[4,"架桥机械场内转运及安拆费","1.机械设备名称：架桥机\n2.机械设备规格型号：运输机械承包人根据施工图纸、施工方案及现场条件自行综合考虑、自行选型\n3.场内转运：场内转运距离、转运路线由承包人根据现场实际情况综合考虑，费用含在综合单价内\n4.场内运输：场内运输所需的辅助设施、人工、辅助机械、设备防护、捆扎加固、安拆、运输等工作内容及费用均包含在综合单价中\n5.临时便道：临时便道由发包人负责提供，满足设备进场通行条件\n6.费用包含：转运全过程运输费、装卸费、路桥费、装卸机械配合费、人工配合费、设备保护费、协调费、安拆费、油费、配备司机等费用\n7.未尽事宜满足设计及现行技术、质量验收规范要求","项",200000,1,"/","/",null,null,"此项按项报价，总价包干，但需注明具体机械名称及数量明细。"]
[5,"架桥机械租赁费","1.机械设备名称：架桥机械\n2.规格、型号：报价人根据项目特点自行考虑\n3.本项目报价人应根据施工经验及施工工期，现场实际情况和企业自身情况综合报价\n4.设备资质资料齐全，操作人员持证上岗、经验熟练；设备状态完好、性能稳定，无故障隐患；报价已包含设备燃油和配备司机的费用。\n5.未尽事宜满足设计及现行技术、质量验收规范要求","项",250000,1,{"$nulls":4},"本项总控制价为250000元，报价人自行根据施工组织、施工工艺和工期安排填报机械租赁时间（月）和月租金并报总价，总价包干。"]
[6,"运梁、运板机械租赁费用","1.机械设备名称：运梁、运板机械\n2.规格、型号：报价人项目特点自行考虑\n3.本项目报价人应根据施工经验及施工工期，现场实际情况和企业自身情况综合报价，含进出场费及租赁费\n4.设备资质资料齐全，操作人员持证上岗、经验熟练；设备状态完好、性能稳定，无故障隐患；报价已包含设备燃油和配备司机的费用。\n5.未尽事宜满足设计及现行技术、质量验收规范要求","项",40000,1,{"$nulls":4},"本项总控制价为40000元，报价人自行根据施工组织、施工工艺和工期安排填报机械租赁时间（月）和月租金并报总价，总价包干"]
[null,"合计",null,null,{"$f":"SUM(E5:E10)","v":990000}]
["补充说明：\n1、机械进出场费实行总价包干，报价人自行根据总工期及自身进度安排计划考虑进出场台次及场内转运；\n2、机械租赁费实行总价包干，报价人自行根据总工期及自身进度安排计划考虑租赁时间和租赁单价；\n3、机械进出场费用和租赁费已包含机械的检测费、保养费、维修费、机操手费用、运行油料、水电费用、司机、配合人工、规费、措施费、销项增值税和附加税等所有费用；\n4、机械运行期间应满足环保要求。\n5、其余大型机械进出场、转运、安拆等费用已已包含在相应清单单价中，不再另计\n"]